Workbook

Sheet Analisis
H3: METODOLOGIA
H4: BASE 2015-2019
A6: Fuentes:
A12: Metodología:
A25: Análisis de la Estacionalidad de las Operaciones de ASEMPLEO (a través de las empresas asociadas), 2015-2019.
A43: Fuente: Cifras consolidadas del sector. ASEMPLEO ©. | H43: pág. 1 / 3
H47: INDICADORES
H48: GLOSARIO
A50: Glosario: | B50: Fuente: | D50: Detalle:
A52: "% i.a." | B52: n.a. (no aplica) | D52: Tasa de variación anual del mes respecto al mes del año anterior (interanual).
A53: "% i.a.12m" | B53: n.a. (no aplica)
A58: CPDs a 3M | B58: ASEMPLEO
A59: Facturación a 3M | B59: ASEMPLEO
A64: Afiliados | B64: Seguridad Social | D64: Número de afiliaciones de trabajadores a la seguridad social (coloquialmente Afiliados)
A66: Contratos | B66: SEPE | D66: Contrataciones gestionadas por los servicios públicos de empleo (totales (indefinidos y temporales))
A67: Ind. Ocupación | B67: INE | D67: Indice de ocupación del sector 78, actividades relacionadas con el empleo.
D68: Se mide con la muestra de empresas del directorio oficial.
D69: Permite hacer un foco de volumen más específico que la senda de afiliados totales.
B72: sector 78. Actividades relacionadas con el empleo
B73: European Comission
A74: Clima sector 12m | B74: Business and Consumer Surveys
A75: Empleo 3M sector
A76: 12m
A92: Fuente: Cifras consolidadas del sector. ASEMPLEO ©. | H92: pág. 2 / 3
H96: INDICADORES
H97: DEBATE
A99: Evolución de los Afiliados en media mensual y como dato de fin de mes | E99: Tasa de variación anual de las dos series de Afiliados (media y fin de mes)
A120: Debate:
A122: Ventajas y desventajas de usar la serie Afiliados media mensual vs. Fin de mes
A124: Media Mensual
A126: (+) sale en la Nota de prensa del Ministerio | E126: http://prensa.mitramiss.gob.es/WebPrensa/noticias/seguridadsocial/detalle/3596
A127: (-) tiene decimales de personas que obligan a redondeo
A128: (+) la media aritmética suaviza atípicos del fin de mes. No se aprecia tanto en los valores absolutos (afiliados) pero sí en las tasas de variación. La media genera un senda de evolución.
A129: (+) facilita un análisis de las tasas de variación de cara a la opinión pública
A131: Fin de Mes
A132: (+) es el dato real más cercano al mercado, con sus subidas y sus bajadas como pasa en las decisiones de los negocios y de la contratación de vuestro sector,
A133: (+) es el dato de las personas sin decimales
A134: (+) es el dato que se relaciona con las contrataciones vigentes del sector de las ETTs, pensando en un porcentaje importante de contratación temporal.
A135: (+) es el dato del mes que realmente esta cotizando y que realmente está ocupado en el mercado.
A138: Nota: por supuesto, una dato u otro (sea media del mes o fin de mes) es procesado de cara a la modelización extrayendo las señales principales.
A140: Fuente: Cifras consolidadas del sector. ASEMPLEO ©. | H140: pág. 3 / 3
A151: No se visualiza junto con los bloques de arriba, es una anotación complementaria de la Metodología.
A153: Cómo se construye el modelo ASEMPLEO para enlazar el mercado laboral con el sector ETTs
A176: Otro debate, sobre el uso inicial de la serie con datos corregidos

Sheet pAccel1 (hidden)
A1: Gauge Configuration | X1: Gauge Configuration | AE1: Gauge Configuration
F2: Decal | AC2: Decal | AJ2: Decal
A3: Title: | B3: CPDs | F3: 100 | X3: Title: | Y3: CPDs a 3M | AC3: 100 | AE3: Title: | AF3: Facturación a 3M | AJ3: 100
A4: Real Value: | B4: =Dashboard!#REF! ->  | C4: =Dashboard!#REF! ->  | X4: Real Value: | Y4: =Data!T93 -> -0.01189348668 | Z4: vale este para numero | AE4: Real Value: | AF4: =Data!U93 -> 0.03677796987 | AG4: vale este para numero
Y5: =IF(Y4>"-25%","-25%",Y4) -> -0.01189348668 | Z5: vale este para aguja | AF5: =IF(AF4>"-25%","-25%",AF4) -> 0.03677796987 | AG5: vale este para aguja
A6: Color bands | Y6: =IF(Y4>"25%","25%",Y4) -> -0.01189348668 | Z6: solo uso si fuera limites | AF6: =IF(AF4>"25%","25%",AF4) -> 0.03677796987 | AG6: solo uso si fuera limites
A7: Red: | B7: -50
A8: Yellow: | B8: 0
A9: Green: | B9: 50
A11: Advanced Parameters | X11: Advanced Parameters | AE11: Advanced Parameters
B12: Value to 100% | C12: =IF(ISERROR((B4-F3/100)*B27),0,(B4-F3/100)*B27) -> 0 | E12: =IF(ISERROR((C4-F3/100)*B27),0,(C4-F3/100)*B27) -> 0 | Y12: Value to 100% | Z12: =IF(ISERROR((Y6-AC3/100)*Y27),0,(Y6-AC3/100)*Y27) -> -4.047573947 | AF12: Value to 100% | AG12: =IF(ISERROR((AF6-AJ3/100)*AF27),0,(AF6-AJ3/100)*AF27) -> -3.852888121
B13: Relative value | C13: =IF(B4<-100%,-100%,IF(B4>100%,100%,2*B4/1)) ->  | D13: ojo1, todo en porcentaje, por 2, y con 1 al final en lugar de 100. | E13: =IF(C4<-100%,-100%,IF(C4>100%,100%,2*C4/1)) ->  | I13: Todos los negritas tienen dato 50, en lugar de 100 para que la escala recorra menos. | Y13: Relative value | Z13: =IF(Y6<-100%,-100%,IF(Y6>100%,100%,4*Y6/1)) -> -0.04757394674 | AF13: Relative value | AG13: =IF(AF6<-100%,-100%,IF(AF6>100%,100%,4*AF6/1)) -> 0.1471118795
A15: Angle | C15: =C13*PI()/2 ->  | E15: =E13*PI()/2 ->  | X15: Angle | Z15: =Z13*PI()/2 -> -0.07472898079 | AE15: Angle | AG15: =AG13*PI()/2 -> 0.2310827999
A16: x | B16: 0 | C16: =SIN(C15) ->  | D16: =B16 -> 0 | E16: =SIN(E15) ->  | X16: x | Y16: 0 | Z16: =SIN(Z15) -> -0.0746594472 | AE16: x | AF16: 0 | AG16: =SIN(AG15) -> 0.2290316755
A17: y | B17: 0 | C17: =-COS(C15) ->  | D17: =B17 -> 0 | E17: =-COS(E15) ->  | X17: y | Y17: 0 | Z17: =-COS(Z15) -> -0.9972090889 | AE17: y | AF17: 0 | AG17: =-COS(AG15) -> -0.9734189702
D19: Value | E19: Label
C20: =B25 -> 25 | D20: 0 | E20: =B25 -> 25
C21: =E21 -> 20 | D21: =D31/D33 -> 2.5 | E21: =E20+$B$26 -> 20
C22: =E22 -> 15 | D22: =D21 -> 2.5 | E22: =E21+$B$26 -> 15
C23: 10 | D23: =D22 -> 2.5 | E23: 10
A24: White | C24: 5 | D24: 2.5 | E24: 5 | X24: White | AE24: White
A25: Total | B25: 25 | C25: 0 | D25: 2.5 | E25: 0 | X25: Total | Y25: =B25 -> 25 | AE25: Total | AF25: =Y25 -> 25
A26: Increment | B26: -5 | C26: -5 | D26: 2.5 | E26: -5 | X26: Increment | Y26: =B26 -> -5 | AE26: Increment | AF26: =Y26 -> -5
A27: Conversion | B27: =100/B25 -> 4 | C27: -10 | D27: 2.5 | E27: -10 | X27: Conversion | Y27: =100/Y25 -> 4 | AE27: Conversion | AF27: =100/AF25 -> 4
C28: -15 | D28: 2.5 | E28: -15
C29: -20 | D29: 2.5 | E29: -20
C30: -25 | D30: 2.5 | E30: -25
D31: =B25 -> 25
D33: 10
D35: =SUM(D20:D30) -> 25

Sheet Dashboard
M3: 2022
M4: MAYO
B5: Nacional | C5: Último mes de información | E5: ABRIL
B6: CPDs | C6: % i.a. | D6: % i.a.12m | H6: Facturación | I6: =C6 -> % i.a. | J6: =D6 -> % i.a.12m
A7: =Data!A78 -> 2021-04-01 | B7: =Data!B78 -> 206986 | C7: =Data!J78 -> 0.646810779 | D7: =Data!P78 -> -0.1208433759 | G7: =A7 -> 2021-04-01 | H7: =Data!D78 -> 298269857.2 | I7: =Data!L78 -> 0.4698597445 | J7: =Data!Q78 -> -0.04399163287
A8: =Data!A79 -> 2021-05-01 | B8: =Data!B79 -> 225542 | C8: =Data!J79 -> 0.6456073021 | D8: =Data!P79 -> -0.05075040616 | G8: 2021-05-01 | H8: =Data!D79 -> 325213260.8 | I8: =Data!L79 -> 0.4495082001 | J8: =Data!Q79 -> 0.01161806934
A9: =Data!A80 -> 2021-06-01 | B9: =Data!B80 -> 228686 | C9: =Data!J80 -> 0.3394521206 | D9: =Data!P80 -> 0.003050239771 | G9: 2021-06-01 | H9: =Data!D80 -> 350949365.6 | I9: =Data!L80 -> 0.3940473813 | J9: =Data!Q80 -> 0.06047572397
A10: =Data!A81 -> 2021-07-01 | B10: =Data!B81 -> 240458 | C10: =Data!J81 -> 0.2484709401 | D10: =Data!P81 -> 0.05309290313 | G10: 2021-07-01 | H10: =Data!D81 -> 379748294 | I10: =Data!L81 -> 0.2258117762 | J10: =Data!Q81 -> 0.1022489218
A11: =Data!A82 -> 2021-08-01 | B11: =Data!B82 -> 229977 | C11: =Data!J82 -> 0.2162753923 | D11: =Data!P82 -> 0.0805180045 | G11: 2021-08-01 | H11: =Data!D82 -> 335259737 | I11: =Data!L82 -> 0.2509022691 | J11: =Data!Q82 -> 0.1370021024
A12: =Data!A83 -> 2021-09-01 | B12: =Data!B83 -> 234177 | C12: =Data!J83 -> 0.1055941382 | D12: =Data!P83 -> 0.106272121 | G12: 2021-09-01 | H12: =Data!D83 -> 356549869.7 | I12: =Data!L83 -> 0.1286828382 | J12: =Data!Q83 -> 0.153700562
A13: =Data!A84 -> 2021-10-01 | B13: =Data!B84 -> 244825 | C13: =Data!J84 -> 0.1044371464 | D13: =Data!P84 -> 0.1316041727 | G13: 2021-10-01 | H13: =Data!D84 -> 344067064.4 | I13: =Data!L84 -> 0.03390325818 | J13: =Data!Q84 -> 0.161958151
A14: =Data!A85 -> 2021-11-01 | B14: =Data!B85 -> 275709 | C14: =Data!J85 -> 0.1444861396 | D14: =Data!P85 -> 0.1496522611 | G14: 2021-11-01 | H14: =Data!D85 -> 376661659.9 | I14: =Data!L85 -> 0.08698011815 | J14: =Data!Q85 -> 0.1657275923
A15: =Data!A86 -> 2021-12-01 | B15: =Data!B86 -> 246557 | C15: =Data!J86 -> 0.1491980778 | D15: =Data!P86 -> 0.1760275475 | G15: 2021-12-01 | H15: =Data!D86 -> 355926709.2 | I15: =Data!L86 -> 0.03530279482 | J15: =Data!Q86 -> 0.1585141058
A16: =Data!A87 -> 2022-01-01 | B16: =Data!B87 -> 239777 | C16: =Data!J87 -> 0.1009247185 | D16: =Data!P87 -> 0.1948805522 | G16: 2022-01-01 | H16: =Data!D87 -> 340922972.3 | I16: =Data!L87 -> 0.1551843112 | J16: =Data!Q87 -> 0.1761822504
A17: =Data!A88 -> 2022-02-01 | B17: =Data!B88 -> 158861 | C17: =Data!J88 -> -0.07696911242 | D17: =Data!P88 -> 0.2028290443 | G17: 2022-02-01 | H17: =Data!D88 -> 329485975.2 | I17: =Data!L88 -> 0.1352116988 | J17: =Data!Q88 -> 0.1892047223
A18: =Data!A89 -> 2022-03-01 | B18: =Data!B89 -> 170474 | C18: =Data!J89 -> -0.1483624083 | D18: =Data!P89 -> 0.1777796085 | G18: 2022-03-01 | H18: =Data!D89 -> 341254197.4 | I18: =Data!L89 -> 0.09366091768 | J18: =Data!Q89 -> 0.1835198677
A19: =Data!A90 -> 2022-04-01 | B19: =Data!B90 -> 171953 | C19: =Data!J90 -> -0.169252993 | D19: =Data!P90 -> 0.1227239758 | G19: =A19 -> 2022-04-01 | H19: =Data!D90 -> 298650888.5 | I19: =Data!L90 -> 0.001277471705 | J19: =Data!Q90 -> 0.1521808045
A20: =Data!A91 -> 2022-05-01 | B20: =Data!C91 -> 197808.2229 | C20: =Data!K91 -> -0.1030366992 | D20: =Data!P91 -> 0.07297331719 | G20: 2022-05-01 | H20: =Data!E91 -> 339320240.9 | I20: =Data!M91 -> 0.04337762883 | J20: =Data!Q91 -> 0.1245090637
A21: =Data!A92 -> 2022-06-01 | B21: =Data!C92 -> 205737.2551 | C21: =Data!K92 -> 0.03694831107 | D21: =Data!P92 -> 0.05166620138 | G21: =A21 -> 2022-06-01 | H21: =Data!E92 -> 354924265 | I21: =Data!M92 -> 0.01132613377 | J21: =Data!Q92 -> 0.0961142775
A22: =Data!A93 -> 2022-07-01 | B22: =Data!C93 -> 221423.9681 | C22: =Data!K93 -> 0.02714529377 | D22: =Data!P93 -> 0.03462136083 | G22: =A22 -> 2022-07-01 | H22: =Data!E93 -> 400500674.4 | I22: =Data!M93 -> 0.05464772524 | J22: =Data!Q93 -> 0.08162029458
B29: Cifras de CONTRATACIÓN (Num. Contratos y % i.a.) | I29: Cifras de FACTURACIÓN (en €uros y % i.a.)
A45: Fuente: Cifras consolidadas del sector. ASEMPLEO ©. | M45: pág .1 / 2
A46: Nota técnica: Las previsiones se realizan para el horizonte anual y se van mostrando los tres meses inmediatos.
M49: =M3 -> 2022
M50: =M4 -> MAYO
B51: =B5 -> Nacional
A52: Número de Afiliados a las Seguridad Social (Trabajadores y % i.a.) | H52: Número de Contratos en los Servicios Públicos de Empleo (Contratos y % i.a.)
A69: Índice de Ocupación (INE) del sector 78 (actividades relacionadas con el empleo) | H69: Datos de clima y expectativas del sector desde la opinión de las empresas (CE)
A87: Fuente: INE. SEPE. Comisión Europea. Ministerio de Trabajo y ASEMPLEO ©. | M87: pág .2 / 2
A88: Nota técnica: Las previsiones se realizan sobre las base de variables explicativas seleccionadas.

Sheet fiabilidad (hidden)
D2: CPDs | E2: FACT | K2: CPDs | L2: FACT
B3: CPDs | C3: FACT | D3: Var.% ia. | E3: Var.% ia.
A4: 2021-04-01 | B4: 2776149.582 | C4: 4138138978 | D4: 0.1799 | E4: 0.187 | F4: realizada en mayo con datos de abril-21. | K4: =B4/12 -> 231345.7985 | L4: =C4/12 -> 344844914.9
A5: cierre | B5: 2722993 | C5: 4020041256 | D5: 0.1760275475 | E5: 0.1585141058 | F5: cierre mercado ya observado | K5: =B5/12 -> 226916.0833 | L5: =C5/12 -> 335003438
D6: =(D5-D4)*100 -> -0.3872452466 | E6: =(E5-E4)*100 -> -2.848589424 | F6: Desviación
A9: 2022-04-01 | B9: 2583471.816 | C9: 4334496362 | D9: =B9/B5-1 -> -0.0512381722 | E9: =C9/C5-1 -> 0.07822186038 | F9: realizada en mayo con datos de abril-22. | K9: =B9/12 -> 215289.318 | L9: =C9/12 -> 361208030.2
A10: cierre | F10: estimación a la espera del cierre del mercado
F11: sirve de orientación, mientras se reciben más de la evolución mensual | L11: media mes
A12: Fuente: modelo laboral específico para ASEMPLEO.

Sheet sectorA (hidden)
A1: CEPREDE | D1: CPDs | E1: FACT | F1: CPDs | G1: FACT | H1: ingresos por operación
B2: CPDs | C2: FACT | D2: Var.% ia. | E2: Var.% ia. | F2: Var. Abs. | G2: Var. Abs. | H2: Ratio FACT/CPDs
A3: 2018 | B3: 2627843 | C3: 3727655511 | H3: =C3/B3 -> 1418.522914
A4: 2019 | B4: 2789262.125 | C4: 3842270884 | D4: =B4/B3-1 -> 0.06142647225 | E4: =C4/C3-1 -> 0.03074730809 | F4: =B4-B3 -> 161419.1251 | G4: =C4-C3 -> 114615372.5 | H4: =C4/B4 -> 1377.522338 | I4: =H4/H3-1 -> -0.02890371115
A5: 2020 | B5: 2315416 | C5: 3469997678 | D5: =B5/B4-1 -> -0.1698822498 | E5: =C5/C4-1 -> -0.09688884964 | F5: =B5-B4 -> -473846.1251 | G5: =C5-C4 -> -372273205.9 | H5: =C5/B5 -> 1498.649779 | I5: 0.087931381
A6: 2021 | B6: 2722993 | C6: 4020041256 | D6: 0.1760275475 | E6: 0.1585141058 | F6: 407577 | G6: 550043578.9 | H6: 1476.331837 | I6: -0.01489203361
A7: 2022 | B7: 2583471.816 | C7: 4334496362 | D7: -0.0512381722 | E7: 0.07822186038 | F7: -139521.1842 | G7: 314455105.9 | H7: 1677.77962 | I7: =H7/H6-1 -> 0.1364515612 | J7: previsiones
I8: subida de costes a los clientes, para mantener margen en términos reales, y de operativa de negocio,
A9: Fuente: información de BORME para el consolidado de las empresas socias.
B13: 2019 | C13: 2020 | D13: 2021 | E13: 2022
A14: =H2 -> Ratio FACT/CPDs | B14: =I4 -> -0.02890371115 | C14: =I5 -> 0.087931381 | D14: =I6 -> -0.01489203361 | E14: =I7 -> 0.1364515612
A15: =B2 -> CPDs | B15: =D4 -> 0.06142647225 | C15: =D5 -> -0.1698822498 | D15: =D6 -> 0.1760275475 | E15: =D7 -> -0.0512381722
A16: =C2 -> FACT | B16: =E4 -> 0.03074730809 | C16: =E5 -> -0.09688884964 | D16: =E6 -> 0.1585141058 | E16: =E7 -> 0.07822186038

Sheet Data (hidden)
B1: Unidades | D1: en Euros | G1: Estacionalidad | AT1: Seg. Social | AX1: IASS_INE | BB1: SEPE | BF1: Mº | BJ1: CE | BL1: INE | BM1: Mº e INE | BN1: Mº y SEPE
B2: CDPs | C2: pry | D2: Facturación € | E2: pry | F2: CDPs | G2: Facturación € | J2: CPDs % i.a. | K2: pry | L2: Facturación % i.a. | M2: pry | AT2: Afiliados_Seg.Social | AU2: pry | AV2: % i.a. | AW2: pry | AX2: Ind_Ocupación_INE_s.78 | AY2: pry | AZ2: % i.a. | BA2: pry | BB2: Contratos SEPE | BC2: pry | BD2: % i.a. | BE2: pry | BF2: CDPs_ETT | BG2: pry | BH2: % i.a. | BI2: pry | BJ2: Clima_Sector_12m | BK2: Empleo3M_Sector_12m | BL2: Cuota Temporalidad (INE) | BM2: Ratio Personas DNIs s/Asalariados Temporales | BN2: Cuota CPDs ETT s/ Contratos Temporales | BO2: pry
A3: 2015-01-01 | B3: 142525 | D3: 182617080.4 | F3: 0.9155145855 | G3: 0.8732963404 | H3: ene | I3: 2015-01-01 | R3: 142525 | S3: 182617080.4 | AS3: 2015-01-01 | AT3: 16589693 | AX3: 90.395 | BB3: 1367795 | BF3: 231337 | BJ3: 14.9 | BK3: 11.43333333 | BL3: 23.51235123 | BM3: 1.401792222 | BN3: 18.5432157
A4: 2015-02-01 | B4: 127138 | D4: 189468242.5 | F4: 0.7836198711 | G4: 0.8602335313 | H4: feb | R4: 127138 | S4: 189468242.5 | AS4: 2015-02-01 | AT4: 16705373 | AX4: 89.092 | BB4: 1226950 | BF4: 209171 | BJ4: 17.75 | BK4: 14.98333333 | BL4: 23.46932636 | BM4: 1.153547623 | BN4: 18.90095412
A5: 2015-03-01 | B5: 154453 | D5: 209757288.3 | F5: 0.8889100962 | G5: 0.934268697 | H5: mar | R5: 154453 | S5: 209757288.3 | AS5: 2015-03-01 | AT5: 16826434 | AX5: 93.722 | BB5: 1441775 | BF5: 247535 | BJ5: 20.11666667 | BK5: 18.53333333 | BL5: 23.80945327 | BM5: 1.223959379 | BN5: 19.07807726
A6: 2015-04-01 | B6: 149585 | D6: 204591879.9 | F6: 0.9419234681 | G6: 0.9163232929 | H6: abr | R6: 149585 | S6: 204591879.9 | AS6: 2015-04-01 | AT6: 16980816 | AX6: 96.703 | BB6: 1440381 | BF6: 236995 | BJ6: 22.375 | BK6: 22 | BL6: 24.5190602 | BM6: 1.209271916 | BN6: 17.99613037
A7: 2015-05-01 | B7: 168144 | D7: 224855403.8 | F7: 1.07038908 | G7: 1.028479769 | H7: may | R7: 168144 | S7: 224855403.8 | AS7: 2015-05-01 | AT7: 17248258 | AX7: 103.064 | BB7: 1573293 | BF7: 271494 | BJ7: 26.33333333 | BK7: 22.78333333 | BL7: 25.12206612 | BM7: 1.278806333 | BN7: 18.74068122
A8: 2015-06-01 | B8: 185886 | D8: 250016443.1 | F8: 1.107956678 | G8: 1.060449162 | H8: jun | R8: 185886 | S8: 250016443.1 | AS8: 2015-06-01 | AT8: 17075016 | AX8: 104.929 | BB8: 1726117 | BF8: 286927 | BJ8: 28.83333333 | BK8: 20.79166667 | BL8: 25.62709 | BM8: 1.282793515 | BN8: 17.9412241
A9: 2015-07-01 | B9: 179265 | D9: 279170449.6 | F9: 1.111431185 | G9: 1.171846856 | H9: jul | R9: 179265 | S9: 279170449.6 | AS9: 2015-07-01 | AT9: 17127908 | AX9: 104.613 | BB9: 1795713 | BF9: 265407 | BJ9: 31.60833333 | BK9: 25.93333333 | BL9: 26.04065494 | BM9: 1.312325305 | BN9: 15.87482071
A10: 2015-08-01 | B10: 162168 | D10: 225321408 | F10: 0.9611501064 | G10: 1.006492196 | H10: ago | R10: 162168 | S10: 225321408 | AS10: 2015-08-01 | AT10: 16983303 | AX10: 94.74 | BB10: 1248146 | BF10: 229251 | BJ10: 35.85833333 | BK10: 26.68333333 | BL10: 26.22829388 | BM10: 1.062474854 | BN10: 19.63007426
A11: 2015-09-01 | B11: 173372 | D11: 247904440.9 | F11: 1.04303909 | G11: 1.047707024 | H11: sep | R11: 173372 | S11: 247904440.9 | AS11: 2015-09-01 | AT11: 17072551 | AX11: 102.219 | BB11: 1795742 | BF11: 260489 | BJ11: 34.45833333 | BK11: 26.25833333 | BL11: 26.19198875 | BM11: 1.257951637 | BN11: 15.85626857
A12: 2015-10-01 | B12: 177704 | D12: 239901142.2 | F12: 1.11125688 | G12: 1.061480201 | H12: oct | R12: 177704 | S12: 239901142.2 | AS12: 2015-10-01 | AT12: 17209036 | AX12: 107.047 | BB12: 1760610 | BF12: 298803 | BJ12: 34.70833333 | BK12: 28.15833333 | BL12: 25.93297296 | BM12: 1.351907379 | BN12: 18.57121193
A13: 2015-11-01 | B13: 174770 | D13: 238308273.4 | F13: 1.061859236 | G13: 1.064920243 | H13: nov | J13: MES | N13: SUMA | P13: ACUM | R13: 174770 | S13: 238308273.4 | AS13: 2015-11-01 | AT13: 17208793 | AX13: 107.937 | BB13: 1604843 | BF13: 296266 | BJ13: 38.78333333 | BK13: 30.16666667 | BL13: 25.6640435 | BM13: 1.314147656 | BN13: 20.12709446
A14: 2015-12-01 | B14: 167729 | D14: 230382346.8 | F14: 1.002949723 | G14: 0.9745026859 | H14: dic | J14: CPDs % i.a. | L14: Facturación % i.a. | N14: CPDs % i.a. | O14: Facturación % i.a. | P14: CPDs % i.a. | Q14: Facturación % i.a. | R14: 167729 | S14: 230382346.8 | T14: CPDs a 3M | U14: Facturación a 3M | AS14: 2015-12-01 | AT14: 17180590 | AX14: 105.538 | BB14: 1594915 | BF14: 275116 | BJ14: 41.76666667 | BK14: 31.85 | BL14: 25.38385468 | BM14: 1.291342502 | BN14: 18.50070307
A15: 2016-01-01 | B15: 156958 | D15: 208230169.1 | F15: 0.9155145855 | G15: 0.8732963404 | I15: 2016-01-01 | J15: 0.1012664445 | L15: 0.1402557123 | R15: 156958 | S15: 208230169.1 | AS15: 2016-01-01 | AT15: 17112224 | AV15: 0.03149732789 | AX15: 100.075 | AZ15: 0.1070855689 | BB15: 1396929 | BD15: 0.02129997551 | BF15: 264702 | BH15: 0.1442268206 | BJ15: 45.40833333 | BK15: 33.25 | BL15: 25.09094241 | BM15: 1.344962834 | BN15: 20.82108554
A16: 2016-02-01 | B16: 149953 | D16: 221421570.7 | F16: 0.7836198711 | G16: 0.8602335313 | I16: 2016-02-01 | J16: 0.1794506756 | L16: 0.1686474088 | R16: 149953 | S16: 221421570.7 | AS16: 2016-02-01 | AT16: 17136666 | AV16: 0.02581762167 | AX16: 97.505 | AZ16: 0.09443047636 | BB16: 1377480 | BD16: 0.122686336 | BF16: 243391 | BH16: 0.1635982043 | BJ16: 46.55833333 | BK16: 32.60833333 | BL16: 24.98147371 | BM16: 1.14982212 | BN16: 19.65817419
A17: 2016-03-01 | B17: 166016 | D17: 231080133.1 | F17: 0.8889100962 | G17: 0.934268697 | I17: 2016-03-01 | J17: 0.07486419817 | L17: 0.1016548459 | R17: 166016 | S17: 231080133.1 | T17: 0.1150887965 | U17: 0.1355852255 | AS17: 2016-03-01 | AT17: 17263972 | AV17: 0.02600301407 | AX17: 101.212 | AZ17: 0.07991720194 | BB17: 1508881 | BD17: 0.04654401692 | BF17: 266262 | BH17: 0.07565394793 | BJ17: 46.15 | BK17: 32.01666667 | BL17: 25.05659626 | BM17: 1.216394372 | BN17: 19.6046843 | BX17: Aquí salen 4 puntos en la segunda Serie
A18: 2016-04-01 | B18: 169998 | D18: 242191235 | F18: 0.9419234681 | G18: 0.9163232929 | I18: 2016-04-01 | J18: 0.1364642177 | L18: 0.1837773576 | R18: 169998 | S18: 242191235 | T18: 0.1270733993 | U18: 0.150501669 | AS18: 2016-04-01 | AT18: 17536670 | AV18: 0.03273423374 | AX18: 104.853 | AZ18: 0.08427866767 | BB18: 1541729 | BD18: 0.07036193896 | BF18: 273915 | BH18: 0.1557838773 | BJ18: 44.90833333 | BK18: 33.49166667 | BL18: 25.31335019 | BM18: 1.261871624 | BN18: 19.62376588 | BX18: pero en dashboard salen solo los Tres ultimos, Ok.
A19: 2016-05-01 | B19: 196306 | D19: 251262143.3 | F19: 1.07038908 | G19: 1.028479769 | I19: 2016-05-01 | J19: 0.1674873918 | L19: 0.1174387589 | R19: 196306 | S19: 251262143.3 | T19: 0.1273619071 | U19: 0.1334923798 | AS19: 2016-05-01 | AT19: 17598892 | AV19: 0.0203286616 | AX19: 111.403 | AZ19: 0.08091089032 | BB19: 1748449 | BD19: 0.1113308201 | BF19: 311082 | BH19: 0.1458153771 | BJ19: 43.11666667 | BK19: 33.73333333 | BL19: 25.68202163 | BM19: 1.308302187 | BN19: 19.41000406
A20: 2016-06-01 | B20: 201560 | D20: 267042260.6 | F20: 1.107956678 | G20: 1.060449162 | I20: 2016-06-01 | J20: 0.08432049751 | L20: 0.06809879078 | R20: 201560 | S20: 267042260.6 | T20: 0.1275756282 | U20: 0.1192586284 | AS20: 2016-06-01 | AT20: 17569070 | AV20: 0.02893432135 | AX20: 114.262 | AZ20: 0.08894585863 | BB20: 1920340 | BD20: 0.1125201826 | BF20: 318281 | BH20: 0.1092751815 | BJ20: 39.99166667 | BK20: 34.475 | BL20: 26.16111077 | BM20: 1.356816122 | BN20: 17.96223923
A21: 2016-07-01 | B21: 191432 | D21: 284661756.8 | F21: 1.111431185 | G21: 1.171846856 | I21: 2016-07-01 | J21: 0.06787158676 | L21: 0.01967008744 | R21: 191432 | S21: 284661756.8 | T21: 0.1050131728 | U21: 0.06488212186 | AS21: 2016-07-01 | AT21: 17805681 | AV21: 0.0395712658 | AX21: 114.806 | AZ21: 0.09743530919 | BB21: 1816271 | BD21: 0.01144837733 | BF21: 285853 | BH21: 0.0770364007 | BJ21: 41.24166667 | BK21: 37.3 | BL21: 26.74961267 | BM21: 1.32342059 | BN21: 17.02640032
A22: 2016-08-01 | B22: 182985 | D22: 261264124.3 | F22: 0.9611501064 | G22: 1.006492196 | I22: 2016-08-01 | J22: 0.1283668788 | L22: 0.1595175383 | R22: 182985 | S22: 261264124.3 | T22: 0.09227431593 | U22: 0.07748071277 | AS22: 2016-08-01 | AT22: 17452445 | AV22: 0.0276237196 | AX22: 106.118 | AZ22: 0.1200971079 | BB22: 1451789 | BD22: 0.1631563936 | BF22: 258953 | BH22: 0.1295610488 | BJ22: 39.48333333 | BK22: 38.13333333 | BL22: 27.04936708 | BM22: 1.168345126 | BN22: 19.22927836
A23: 2016-09-01 | B23: 192612 | D23: 274798383.4 | F23: 1.04303909 | G23: 1.047707024 | I23: 2016-09-01 | J23: 0.110975244 | L23: 0.1084851177 | R23: 192612 | S23: 274798383.4 | T23: 0.1014442362 | U23: 0.0908137986 | AS23: 2016-09-01 | AT23: 17603313 | AV23: 0.03108861704 | AX23: 114.053 | AZ23: 0.1157710406 | BB23: 1907000 | BD23: 0.06195656169 | BF23: 296811 | BH23: 0.1394377498 | BJ23: 38.95833333 | BK23: 41.39166667 | BL23: 27.06504509 | BM23: 1.291221524 | BN23: 17.09752602
A24: 2016-10-01 | B24: 202694 | D24: 257137837.9 | F24: 1.11125688 | G24: 1.061480201 | I24: 2016-10-01 | J24: 0.1406271103 | L24: 0.0718491609 | R24: 202694 | S24: 257137837.9 | T24: 0.1267369906 | U24: 0.1122848462 | AS24: 2016-10-01 | AT24: 17666175 | AV24: 0.02656389353 | AX24: 115.544 | AZ24: 0.07937634871 | BB24: 1867360 | BD24: 0.06063239445 | BF24: 332326 | BH24: 0.1121909753 | BJ24: 38.875 | BK24: 41.60833333 | BL24: 26.79769011 | BM24: 1.364824521 | BN24: 19.54249557
A25: 2016-11-01 | B25: 197237 | D25: 274941716.9 | F25: 1.061859236 | G25: 1.064920243 | I25: 2016-11-01 | J25: 0.128551811 | L25: 0.1537229193 | R25: 197237 | S25: 274941716.9 | T25: 0.1268375152 | U25: 0.111227848 | AS25: 2016-11-01 | AT25: 17734106 | AV25: 0.03052584804 | AX25: 120.356 | AZ25: 0.1150578578 | BB25: 1743708 | BD25: 0.0865287134 | BF25: 323282 | BH25: 0.09118832401 | BJ25: 36.40833333 | BK25: 44.36666667 | BL25: 26.4868368 | BM25: 1.460640697 | BN25: 20.34686636
A26: 2016-12-01 | B26: 185523 | D26: 253243450.7 | F26: 1.002949723 | G26: 0.9745026859 | I26: 2016-12-01 | J26: 0.1060877964 | L26: 0.09923114467 | P26: 0.1174557595 | Q26: 0.1120306397 | R26: 185523 | S26: 253243450.7 | T26: 0.1254337249 | U26: 0.1082869535 | AS26: 2016-12-01 | AT26: 17741897 | AV26: 0.03267099675 | AX26: 115.708 | AZ26: 0.09636339518 | BB26: 1699018 | BD26: 0.06527181699 | BF26: 306679 | BH26: 0.1147261519 | BJ26: 37.10833333 | BK26: 44.84166667 | BL26: 26.13150398 | BM26: 1.362362845 | BN26: 19.45039208
A27: 2017-01-01 | B27: 186558 | D27: 243107257.3 | F27: 0.9155145855 | G27: 0.8732963404 | I27: 2017-01-01 | J27: 0.1885854815 | L27: 0.1674929639 | N27: 0.1885854815 | O27: 0.1674929639 | P27: 0.1242694111 | Q27: 0.1143577008 | R27: 186558 | S27: 243107257.3 | T27: 0.1398739031 | U27: 0.1394131147 | AS27: 2017-01-01 | AT27: 17603835 | AV27: 0.02872864451 | AX27: 111.443 | AZ27: 0.1135948039 | BB27: 1633592 | BD27: 0.1694166275 | BF27: 316513 | BH27: 0.1957333152 | BJ27: 35.76666667 | BK27: 41.70833333 | BL27: 25.73048749 | BM27: 1.474843094 | BN27: 21.33656458
A28: 2017-02-01 | B28: 157744 | D28: 242380678.8 | F28: 0.7836198711 | G28: 0.8602335313 | I28: 2017-02-01 | J28: 0.05195627963 | L28: 0.09465702914 | N28: 0.1218301071 | O28: 0.1299568723 | P28: 0.1153397497 | Q28: 0.1090882539 | R28: 157744 | S28: 242380678.8 | T28: 0.1162670656 | U28: 0.1192321758 | AS28: 2017-02-01 | AT28: 17728908 | AV28: 0.03455993132 | AX28: 107.75 | AZ28: 0.1050715348 | BB28: 1452528 | BD28: 0.05448209774 | BF28: 266143 | BH28: 0.09347921657 | BJ28: 35.18333333 | BK28: 40.125 | BL28: 25.64489215 | BM28: 1.217909434 | BN28: 20.44963487
A29: 2017-03-01 | B29: 178587 | D29: 277664935.3 | F29: 0.8889100962 | G29: 0.934268697 | I29: 2017-03-01 | J29: 0.07572161719 | L29: 0.2015958775 | N29: 0.1056442115 | O29: 0.1550114391 | P29: 0.1151778479 | Q29: 0.1172761802 | R29: 178587 | S29: 277664935.3 | T29: 0.1056442115 | U29: 0.1550114391 | AS29: 2017-03-01 | AT29: 17852834 | AV29: 0.03410929999 | AX29: 112.384 | AZ29: 0.1103821681 | BB29: 1732773 | BD29: 0.1483828082 | BF29: 296002 | BH29: 0.1116944964 | BJ29: 33.45 | BK29: 39.68333333 | BL29: 25.87471418 | BM29: 1.336740333 | BN29: 19.04351994
A30: 2017-04-01 | B30: 186654 | D30: 248195455.3 | F30: 0.9419234681 | G30: 0.9163232929 | I30: 2017-04-01 | J30: 0.09797762327 | L30: 0.02479123679 | N30: 0.1036170626 | O30: 0.1200824497 | P30: 0.112171826 | Q30: 0.1045930539 | R30: 186654 | S30: 248195455.3 | T30: 0.07617389658 | U30: 0.1058714238 | AS30: 2017-04-01 | AT30: 18184000 | AV30: 0.03691293729 | AX30: 113.543 | AZ30: 0.08287793387 | BB30: 1604476 | BD30: 0.04069911119 | BF30: 300996 | BH30: 0.09886643667 | BJ30: 33.26666667 | BK30: 41.80833333 | BL30: 26.41123109 | BM30: 1.316908534 | BN30: 20.71508601
A31: 2017-05-01 | B31: 231846 | D31: 310059995.4 | F31: 1.07038908 | G31: 1.028479769 | I31: 2017-05-01 | J31: 0.1810438805 | L31: 0.2340099916 | N31: 0.1217281058 | O31: 0.1448840822 | P31: 0.1142197682 | Q31: 0.1149341319 | R31: 231846 | S31: 310059995.4 | T31: 0.1216692967 | U31: 0.153735987 | AS31: 2017-05-01 | AT31: 18261899 | AV31: 0.03767322397 | AX31: 124.492 | AZ31: 0.1174923476 | BB31: 2027569 | BD31: 0.1596386283 | BF31: 374096 | BH31: 0.2025639542 | BJ31: 33.84166667 | BK31: 41.30833333 | BL31: 26.83948192 | BM31: 1.506328926 | BN31: 20.10942309
A32: 2017-06-01 | B32: 235960 | D32: 315060274.4 | F32: 1.107956678 | G32: 1.060449162 | I32: 2017-06-01 | J32: 0.1706687835 | L32: 0.1798142874 | N32: 0.131205977 | O32: 0.1514473107 | P32: 0.1223784191 | Q32: 0.1250081004 | R32: 235960 | S32: 315060274.4 | T32: 0.1524942592 | U32: 0.1483507338 | AS32: 2017-06-01 | AT32: 18196843 | AV32: 0.03573171488 | AX32: 128.18 | AZ32: 0.1218077751 | BB32: 2089520 | BD32: 0.08809898247 | BF32: 363611 | BH32: 0.1424213195 | BJ32: 31.10833333 | BK32: 39.3 | BL32: 27.16481633 | BM32: 1.49590871 | BN32: 18.90795805
A33: 2017-07-01 | B33: 230704 | D33: 339191134.8 | F33: 1.111431185 | G33: 1.171846856 | I33: 2017-07-01 | J33: 0.2051485645 | L33: 0.1915584961 | N33: 0.1426933274 | O33: 0.1581406645 | P33: 0.1346468285 | Q33: 0.1417520481 | R33: 230704 | S33: 339191134.8 | T33: 0.1853255908 | U33: 0.2009365422 | AS33: 2017-07-01 | AT33: 18276939 | AV33: 0.02646672149 | AX33: 124.773 | AZ33: 0.08681602007 | BB33: 1928639 | BD33: 0.06186741956 | BF33: 331594 | BH33: 0.1600158123 | BJ33: 30.29166667 | BK33: 38.725 | BL33: 27.39115027 | BM33: 1.457589967 | BN33: 18.66409702
A34: 2017-08-01 | B34: 199796 | D34: 301251678.8 | F34: 0.9611501064 | G34: 1.006492196 | I34: 2017-08-01 | J34: 0.09187091838 | L34: 0.1530541348 | N34: 0.13612204 | O34: 0.1574651058 | P34: 0.131417979 | Q34: 0.1413928684 | R34: 199796 | S34: 301251678.8 | T34: 0.1570948145 | U34: 0.1753266075 | AS34: 2017-08-01 | AT34: 18040193 | AV34: 0.03367711515 | AX34: 116.772 | AZ34: 0.1003976705 | BB34: 1536400 | BD34: 0.0582805077 | BF34: 285704 | BH34: 0.1033044607 | BJ34: 33.34166667 | BK34: 38.64166667 | BL34: 27.43824269 | BM34: 1.27056108 | BN34: 20.10558628
A35: 2017-09-01 | B35: 210015 | D35: 313126773.7 | F35: 1.04303909 | G35: 1.047707024 | I35: 2017-09-01 | J35: 0.090352626 | L35: 0.1394782236 | N35: 0.1306390019 | O35: 0.1552604347 | P35: 0.1293665529 | Q35: 0.143979455 | R35: 210015 | S35: 313126773.7 | T35: 0.1295983098 | U35: 0.1618635255 | AS35: 2017-09-01 | AT35: 18400141 | AV35: 0.04526579741 | AX35: 125.359 | AZ35: 0.09912935214 | BB35: 1993267 | BD35: 0.0452370215 | BF35: 325618 | BH35: 0.09705502828 | BJ35: 35.24166667 | BK35: 37.76666667 | BL35: 27.30788181 | BM35: 1.429246846 | BN35: 18.08409193
A36: 2017-10-01 | B36: 227073 | D36: 317565452.5 | F36: 1.11125688 | G36: 1.061480201 | I36: 2017-10-01 | J36: 0.1202748971 | L36: 0.2350008657 | N36: 0.1294787005 | O36: 0.1634651353 | P36: 0.1275812083 | Q36: 0.1576965046 | R36: 227073 | S36: 317565452.5 | T36: 0.1013209612 | U36: 0.174916161 | AS36: 2017-10-01 | AT36: 18281362 | AV36: 0.03482287479 | AX36: 129.227 | AZ36: 0.1184224192 | BB36: 2032184 | BD36: 0.08826578699 | BF36: 362397 | BH36: 0.09048645005 | BJ36: 36.41666667 | BK36: 37.225 | BL36: 27.00081493 | BM36: 1.502287301 | BN36: 19.80698956
A37: 2017-11-01 | B37: 209899 | D37: 328717732.3 | F37: 1.061859236 | G37: 1.064920243 | I37: 2017-11-01 | J37: 0.0641968799 | L37: 0.1955905998 | N37: 0.1230655594 | O37: 0.1666491766 | P37: 0.1217565779 | Q37: 0.1614794743 | R37: 209899 | S37: 328717732.3 | T37: 0.09188193937 | U37: 0.1890397704 | AS37: 2017-11-01 | AT37: 18364819 | AV37: 0.03556497294 | AX37: 130.72 | AZ37: 0.08611120343 | BB37: 1818339 | BD37: 0.04280017067 | BF37: 335660 | BH37: 0.03828855303 | BJ37: 35.66666667 | BK37: 32.38333333 | BL37: 26.70268369 | BM37: 1.490038326 | BN37: 20.37257671
A38: 2017-12-01 | B38: 196182 | D38: 289279009.3 | F38: 1.002949723 | G38: 0.9745026859 | I38: 2017-12-01 | J38: 0.05745379279 | L38: 0.1422961124 | N38: 0.117515641 | O38: 0.164611947 | P38: 0.117515641 | Q38: 0.164611947 | R38: 196182 | S38: 289279009.3 | T38: 0.08147523119 | U38: 0.1913087829 | AS38: 2017-12-01 | AT38: 18331107 | AV38: 0.03321009022 | AX38: 126.086 | AZ38: 0.08969129187 | BB38: 1652016 | BD38: -0.02766421545 | BF38: 314153 | BH38: 0.024370759 | BJ38: 35.49166667 | BK38: 31.01666667 | BL38: 26.41101431 | BM38: 1.393346705 | BN38: 20.6550647
A39: 2018-01-01 | B39: 210996 | D39: 293638891 | F39: 0.9155145855 | G39: 0.8732963404 | I39: 2018-01-01 | J39: 0.1309941144 | L39: 0.207857364 | N39: 0.1309941144 | O39: 0.207857364 | P39: 0.1136285727 | Q39: 0.1678493305 | R39: 210996 | S39: 293638891 | T39: 0.08388809066 | U39: 0.1819584933 | AS39: 2018-01-01 | AT39: 18211901 | AV39: 0.03454167799 | AX39: 121.174 | AZ39: 0.08731818059 | BB39: 1749911 | BD39: 0.07120443783 | BF39: 342985 | BH39: 0.08363637513 | BJ39: 35.58333333 | BK39: 31.58333333 | BL39: 26.1234124 | BM39: 1.576493081 | BN39: 21.74978661
A40: 2018-02-01 | B40: 173484 | D40: 277297074.4 | F40: 0.7836198711 | G40: 0.8602335313 | I40: 2018-02-01 | J40: 0.09978192514 | L40: 0.1440560189 | N40: 0.1166940651 | O40: 0.1760044339 | P40: 0.1167952158 | Q40: 0.1712352986 | R40: 173484 | S40: 277297074.4 | T40: 0.09595054971 | U40: 0.1644489323 | AS40: 2018-02-01 | AT40: 18314467 | AV40: 0.03302848658 | AX40: 116.26 | AZ40: 0.07897911833 | BB40: 1546402 | BD40: 0.06462801406 | BF40: 280698 | BH40: 0.05468864483 | BJ40: 37.24166667 | BK40: 33.64166667 | BL40: 26.04070254 | BM40: 1.275704436 | BN40: 20.45732318
A41: 2018-03-01 | B41: 191294 | D41: 295781933.9 | F41: 0.8889100962 | G41: 0.934268697 | I41: 2018-03-01 | J41: 0.07115299546 | L41: 0.06524770093 | N41: 0.1011400125 | O41: 0.135706792 | P41: 0.116201327 | Q41: 0.1595904715 | R41: 191294 | S41: 295781933.9 | T41: 0.1011400125 | U41: 0.135706792 | AS41: 2018-03-01 | AT41: 18542644 | AV41: 0.03863868336 | AX41: 119.694 | AZ41: 0.06504484624 | BB41: 1646846 | BD41: -0.04958929993 | BF41: 306027 | BH41: 0.03386801441 | BJ41: 40.05 | BK41: 37.71666667 | BL41: 26.16464397 | BM41: 1.360942679 | BN41: 21.05596678
A42: 2018-04-01 | B42: 210840 | D42: 298168633.8 | F42: 0.9419234681 | G42: 0.9163232929 | I42: 2018-04-01 | J42: 0.1295766498 | L42: 0.2013460661 | N42: 0.1086206192 | O42: 0.1518153563 | P42: 0.1186769102 | Q42: 0.1733069438 | R42: 210840 | S42: 298168633.8 | T42: 0.1006395977 | U42: 0.1340810547 | AS42: 2018-04-01 | AT42: 18659703 | AV42: 0.02616052574 | AX42: 122.977 | AZ42: 0.08308746466 | BB42: 1772557 | BD42: 0.1047575657 | BF42: 335215 | BH42: 0.1136858962 | BJ42: 40.28333333 | BK42: 36.25833333 | BL42: 26.48790287 | BM42: 1.415572027 | BN42: 21.17745687
A43: 2018-05-01 | B43: 232889 | D43: 326546641.6 | F43: 1.07038908 | G43: 1.028479769 | I43: 2018-05-01 | J43: 0.004498675845 | L43: 0.05317243921 | N43: 0.08297738767 | O43: 0.1286694279 | P43: 0.101810901 | Q43: 0.1568720347 | R43: 232889 | S43: 326546641.6 | T43: 0.06353512972 | U43: 0.1011780845 | AS43: 2018-05-01 | AT43: 18832943 | AV43: 0.03126969435 | AX43: 131.139 | AZ43: 0.05339298911 | BB43: 2058400 | BD43: 0.01520589435 | BF43: 375424 | BH43: 0.003549890937 | BJ43: 42.025 | BK43: 39.84166667 | BL43: 26.80064278 | BM43: 1.526721555 | BN43: 20.20231155
A44: 2018-06-01 | B44: 234602 | D44: 330264972 | F44: 1.107956678 | G44: 1.060449162 | I44: 2018-06-01 | J44: -0.005755212748 | L44: 0.04825964714 | N44: 0.06519392296 | O44: 0.1131885762 | P44: 0.08495977392 | Q44: 0.1444292275 | R44: 234602 | S44: 330264972 | T44: 0.03647434526 | U44: 0.09351088058 | AS44: 2018-06-01 | AT44: 18967952 | AV44: 0.04237597698 | AX44: 134.836 | AZ44: 0.05192697769 | BB44: 2055762 | BD44: -0.01615586355 | BF44: 368785 | BH44: 0.01422949251 | BJ44: 44.64166667 | BK44: 41.75833333 | BL44: 27.10710018 | BM44: 1.538664839 | BN44: 19.79745436
A45: 2018-07-01 | B45: 245631 | D45: 360244379.4 | F45: 1.111431185 | G45: 1.171846856 | I45: 2018-07-01 | J45: 0.06470195575 | L45: 0.0620689708 | N45: 0.06511331605 | O45: 0.1044121069 | P45: 0.07327538175 | Q45: 0.1318871584 | R45: 245631 | S45: 360244379.4 | T45: 0.0209188129 | U45: 0.05469663463 | AS45: 2018-07-01 | AT45: 18812915 | AV45: 0.02932526065 | AX45: 133.971 | AZ45: 0.07371787165 | BB45: 2086655 | BD45: 0.08193135159 | BF45: 354574 | BH45: 0.06930161583 | BJ45: 44.01666667 | BK45: 37.88333333 | BL45: 27.41121503 | BM45: 1.503833679 | BN45: 18.69619046
A46: 2018-08-01 | B46: 204962 | D46: 309163157.6 | F46: 0.9611501064 | G46: 1.006492196 | I46: 2018-08-01 | J46: 0.0258563735 | L46: 0.02626202374 | N46: 0.06023513402 | O46: 0.09407229148 | P46: 0.06787836113 | Q46: 0.1206946041 | R46: 204962 | S46: 309163157.6 | T46: 0.02811121448 | U46: 0.04622635092 | AS46: 2018-08-01 | AT46: 18535422 | AV46: 0.02745142472 | AX46: 123.147 | AZ46: 0.05459356695 | BB46: 1602495 | BD46: 0.04301939599 | BF46: 291242 | BH46: 0.01938369781 | BJ46: 43.325 | BK46: 37.95833333 | BL46: 27.50181795 | BM46: 1.322436528 | BN46: 20.10542782
A47: 2018-09-01 | B47: 221297 | D47: 304258472.5 | F47: 1.04303909 | G47: 1.047707024 | I47: 2018-09-01 | J47: 0.05371997238 | L47: -0.02832175974 | N47: 0.05948244753 | O47: 0.07927526856 | P47: 0.06483994211 | Q47: 0.1053413668 | R47: 221297 | S47: 304258472.5 | T47: 0.04898402067 | U47: 0.02107494031 | AS47: 2018-09-01 | AT47: 18956018 | AV47: 0.03021047502 | AX47: 128.864 | AZ47: 0.02795969974 | BB47: 1952397 | BD47: -0.02050402681 | BF47: 331276 | BH47: 0.01737618928 | BJ47: 38.79166667 | BK47: 37.35 | BL47: 27.37996403 | BM47: 1.408213349 | BN47: 19.26438784
A48: 2018-10-01 | B48: 251525 | D48: 327949285.8 | F48: 1.11125688 | G48: 1.061480201 | I48: 2018-10-01 | J48: 0.1076834322 | L48: 0.032698246 | N48: 0.06483476019 | O48: 0.07418817448 | P48: 0.06421888728 | Q48: 0.08892321303 | R48: 251525 | S48: 327949285.8 | T48: 0.06421891585 | U48: 0.01011542725 | AS48: 2018-10-01 | AT48: 18792718 | AV48: 0.02797143889 | AX48: 135.498 | AZ48: 0.04852701061 | BB48: 2243453 | BD48: 0.1039615507 | BF48: 382899 | BH48: 0.056573316 | BJ48: 32.98333333 | BK48: 37.725 | BL48: 27.04591907 | BM48: 1.578543097 | BN48: 19.13414877
A49: 2018-11-01 | B49: 234614 | D49: 321187356 | F49: 1.061859236 | G49: 1.064920243 | I49: 2018-11-01 | J49: 0.1177471069 | L49: -0.02290833585 | N49: 0.06976028412 | O49: 0.06432594479 | P49: 0.06882470981 | Q49: 0.06998436792 | R49: 234614 | S49: 321187356 | T49: 0.09343155272 | U49: -0.006269315974 | AS49: 2018-11-01 | AT49: 18871968 | AV49: 0.0276152463 | AX49: 135.094 | AZ49: 0.03346083231 | BB49: 1867172 | BD49: 0.02685582831 | BF49: 375486 | BH49: 0.1186498242 | BJ49: 31.05 | BK49: 42.35833333 | BL49: 26.82327977 | BM49: 1.545281214 | BN49: 22.48959181
A50: 2018-12-01 | B50: 215709 | D50: 283154713 | F50: 1.002949723 | G50: 0.9745026859 | I50: 2018-12-01 | J50: 0.09953512555 | L50: -0.02117089747 | N50: 0.07214349303 | O50: 0.05731084405 | P50: 0.07214349303 | Q50: 0.05731084405 | R50: 215709 | S50: 283154713 | T50: 0.1084949317 | U50: -0.003496121576 | W50: may-19.2 | Y50: may-19.1 | AA50: 2019-03-01 | AS50: 2018-12-01 | AT50: 18914563 | AV50: 0.03182873789 | AX50: 128.577 | AZ50: 0.01975635677 | BB50: 1709631 | BD50: 0.03487557021 | BF50: 340020 | BH50: 0.08233886036 | BJ50: 25.775 | BK50: 44.56666667 | BL50: 26.71197732 | BM50: 1.347660584 | BN50: 21.72855853
A51: 2019-01-01 | B51: 220319 | D51: 298303323 | F51: 0.9155145855 | G51: 0.8732963404 | I51: 2019-01-01 | J51: 0.04418567177 | L51: 0.01588492598 | N51: 0.04418567177 | O51: 0.01588492598 | P51: 0.06532533804 | Q51: 0.0436751024 | R51: 220319 | S51: 298303323 | T51: 0.08680440204 | U51: -0.009861659735 | W51: 249801 | X51: 327669711.7 | Y51: 249801 | Z51: 327669711.7 | AA51: 249801 | AB51: 327669711.7 | AS51: 2019-01-01 | AT51: 18730629 | AV51: 0.02848291345 | AX51: 123.061 | AZ51: 0.0155726476 | BB51: 1858077 | BD51: 0.06181228645 | BF51: 354679 | BH51: 0.03409478549 | BJ51: 21.20833333 | BK51: 47.225 | BN51: 21.15303069
A52: 2019-02-01 | B52: 176877 | D52: 276992131.7 | F52: 0.7836198711 | G52: 0.8602335313 | I52: 2019-02-01 | J52: 0.01955799958 | L52: -0.001099696884 | N52: 0.03307324178 | O52: 0.007635688734 | P52: 0.05995634225 | Q52: 0.03349902293 | R52: 176877 | S52: 276992131.7 | T52: 0.0555280008 | U52: -0.002051588241 | W52: 201433 | X52: 305837745.2 | Y52: 201433 | Z52: 305837745.2 | AA52: 201433 | AB52: 305837745.2 | AS52: 2019-02-01 | AT52: 18846671 | AV52: 0.02905921313 | AX52: 116.749 | AZ52: 0.004206089799 | BB52: 1571017 | BD52: 0.01591759452 | BF52: 287155 | BH52: 0.02300337017 | BJ52: 18.16666667 | BK52: 46.33333333 | BN52: 20.47713789
A53: 2019-03-01 | B53: 200348 | D53: 297202863.4 | F53: 0.8889100962 | G53: 0.934268697 | I53: 2019-03-01 | J53: 0.04733028741 | L53: 0.004803976396 | N53: 0.03780997405 | O53: 0.006669319686 | P53: 0.05819314886 | Q53: 0.02873126808 | R53: 200348 | S53: 297202863.4 | T53: 0.03780997405 | U53: 0.006669319686 | W53: 224512 | X53: 323862465 | Y53: 224512 | Z53: 323862465 | AA53: 224512 | AB53: 323862465 | AS53: 2019-03-01 | AT53: 19096989 | AV53: 0.02989568262 | AX53: 121.078 | AZ53: 0.01156281852 | BB53: 1709848 | BD53: 0.03825615753 | BF53: 321344 | BH53: 0.05005113928 | BJ53: 16.76666667 | BK53: 43.93333333 | BN53: 21.00250518
A54: 2019-04-01 | B54: 226741 | D54: 293148945.3 | F54: 0.9419234681 | G54: 0.9163232929 | I54: 2019-04-01 | J54: 0.07541737811 | L54: -0.01683506557 | N54: 0.04789007061 | O54: 0.0006530509415 | P54: 0.05435924131 | Q54: 0.01339380292 | R54: 226741 | S54: 293148945.3 | T54: 0.04924793874 | U54: -0.00448058808 | W54: 243486.8823 | X54: 309258004 | Y54: 245128.9 | Z54: 357151100 | AA54: 253926 | AB54: 322516955.3 | AS54: 2019-04-01 | AT54: 19182644 | AV54: 0.02802515131 | AX54: 122.229 | AZ54: -0.006082438179 | BB54: 1765185 | BD54: -0.004158963576 | BF54: 353127 | BH54: 0.05343436302 | BJ54: 12.21666667 | BK54: 40.23333333 | BN54: 22.2063822
A55: 2019-05-01 | B55: 243357 | D55: 331012515.3 | F55: 1.07038908 | G55: 1.028479769 | I55: 2019-05-01 | J55: 0.04494845184 | L55: 0.01367606684 | N55: 0.04721810529 | O55: 0.003504417116 | P55: 0.05806339883 | Q55: 0.01008134815 | R55: 243357 | S55: 331012515.3 | T55: 0.05578223151 | U55: 0.000942006795 | W55: 275202.1545 | X55: 354711577.9 | Y55: 274212.8 | Z55: 385882600 | AA55: 285128.7 | AB55: 368493600 | AS55: 2019-05-01 | AT55: 19327792 | AV55: 0.02627571272 | AX55: 133.141 | AZ55: 0.01526624421 | BB55: 2075741 | BD55: 0.008424504469 | BF55: 393071 | BH55: 0.04700551909 | BJ55: 9.141666667 | BK55: 35.825 | BN55: 20.78003574
A56: 2019-06-01 | B56: 252177.1598 | D56: 326230041 | F56: 1.107956678 | G56: 1.060449162 | I56: 2019-06-01 | J56: 0.07491479122 | L56: -0.01221725399 | N56: 0.05239924875 | O56: 0.0006541549707 | P56: 0.06558464477 | Q56: 0.00485531706 | R56: 252177.1598 | S56: 326230041 | T56: 0.06478276807 | U56: -0.004805068861 | W56: 290450.5798 | X56: 376571415.4 | Y56: 289052.9 | Z56: 407798800 | AA56: 293334.8 | AB56: 385340000 | AS56: 2019-06-01 | AT56: 19458689 | AV56: 0.02587190225 | AX56: 136.696 | AZ56: 0.01379453558 | BB56: 2009011 | BD56: -0.02274144575 | BF56: 381685 | BH56: 0.03497973074 | BJ56: 7.05 | BK56: 34.75 | BN56: 20.80195024
A57: 2019-07-01 | B57: 266634.6556 | D57: 381721674.2 | F57: 1.111431185 | G57: 1.171846856 | I57: 2019-07-01 | J57: 0.08550897716 | L57: 0.05961868104 | N57: 0.05782205363 | O57: 0.01038935141 | P57: 0.06758947097 | Q57: 0.004941555005 | R57: 266634.6556 | S57: 381721674.2 | T57: 0.06877759404 | U57: 0.02154083704 | W57: 295009.5098 | X57: 424394110.6 | Y57: 292815.2 | Z57: 448094200 | AA57: 296533.7 | AB57: 428012000 | AS57: 2019-07-01 | AT57: 19290343 | AV57: 0.02537767273 | AX57: 135.864 | AZ57: 0.01412992364 | BB57: 2179527 | BD57: 0.04450759709 | BF57: 379951 | BH57: 0.07157039151 | BJ57: 6.533333333 | BK57: 36.5 | BN57: 19.05649173
A58: 2019-08-01 | B58: 213172.3097 | D58: 315871099.9 | F58: 0.9611501064 | G58: 1.006492196 | I58: 2019-08-01 | J58: 0.04005771653 | L58: 0.02169709463 | N58: 0.05568618319 | O58: 0.01179271924 | P58: 0.06864727441 | Q58: 0.004609282359 | R58: 213172.3097 | S58: 315871099.9 | T58: 0.0682858531 | U58: 0.02415821759 | W58: 253055.4435 | X58: 360133709.6 | Y58: 249992.7 | Z58: 377947900 | AA58: 252390.6 | AB58: 362182600 | AS58: 2019-08-01 | AT58: 19254763 | AV58: 0.03880898962 | AX58: 122.768 | AZ58: -0.003077622679 | BB58: 1519922 | BD58: -0.05152777388 | BF58: 299075 | BH58: 0.02689515935 | BJ58: 8.8 | BK58: 40.55 | BN58: 21.41381668
A59: 2019-09-01 | B59: 247841 | D59: 330639042.3 | F59: 1.04303909 | G59: 1.047707024 | I59: 2019-09-01 | J59: 0.119947401 | L59: 0.08670447068 | N59: 0.06306980294 | O59: 0.01994641007 | P59: 0.07430834434 | Q59: 0.0140679916 | R59: 247841 | S59: 330639042.3 | T59: 0.08298674674 | U59: 0.05604160597 | W59: 282464.2199 | X59: 376651311.5 | Y59: 280540 | Z59: 398381900 | AA59: 282775.1 | AB59: 381957400 | AS59: 2019-09-01 | AT59: 19223638 | AV59: 0.01411794397 | AX59: 129.257 | AZ59: 0.003049726844 | BB59: 2094635 | BD59: 0.07285301094 | BF59: 358585 | BH59: 0.08243579372 | BJ59: 9.091666667 | BK59: 40.73333333 | BN59: 19.32122859
A60: 2019-10-01 | B60: 254496 | D60: 347507601.7 | F60: 1.11125688 | G60: 1.061480201 | I60: 2019-10-01 | J60: 0.01181194712 | L60: 0.05963823323 | N60: 0.0571490159 | O60: 0.02411406896 | P60: 0.06529070283 | Q60: 0.01648115774 | R60: 254496 | S60: 347507601.7 | T60: 0.05565978202 | U60: 0.0559257007 | V60: 2019-10-01 | W60: 320290.3299 | X60: 394441628 | Y60: 318663.4 | Z60: 420857900 | AA60: 320153.3 | AB60: 403007500 | AS60: 2019-10-01 | AT60: 19181445 | AV60: 0.02068498021 | AX60: 133.496 | AZ60: -0.01477512583 | BB60: 2224757 | BD60: -0.008333582206 | BF60: 391788 | BH60: 0.02321499926 | BJ60: 6.691666667 | BK60: 39.45833333 | BN60: 19.71864586
A61: 2019-11-01 | B61: 247475 | D61: 331735228 | F61: 1.061859236 | G61: 1.064920243 | I61: 2019-11-01 | J61: 0.05481770056 | L61: 0.03284024661 | N61: 0.05692226266 | O61: 0.02492775376 | P61: 0.06012734849 | Q61: 0.0213562062 | R61: 247475 | S61: 331735228 | T61: 0.05990082495 | U61: 0.05924800425 | W61: 290113.3979 | X61: 381384619.3 | Y61: 288546.4 | Z61: 398927800 | AA61: 288451 | AB61: 382867600 | AS61: 2019-11-01 | AT61: 19415313 | AV61: 0.02879111495 | AX61: 134.334 | AZ61: -0.005625712467 | BB61: 1764169 | BD61: -0.05516524455 | BF61: 367946 | BH61: -0.02008064215 | BJ61: 6.941666667 | BK61: 35.94166667 | BN61: 23.1041024
A62: 2019-12-01 | B62: 239824 | D62: 311906417.8 | F62: 1.002949723 | G62: 0.9745026859 | I62: 2019-12-01 | J62: 0.1117941301 | L62: 0.1015406187 | N62: 0.06142647225 | O62: 0.03074730809 | P62: 0.06142647225 | Q62: 0.03074730809 | R62: 239824 | S62: 311906417.8 | T62: 0.05691688229 | U62: 0.0631325094 | W62: 271304.5636 | X62: 347471620.2 | Y62: 270298.1 | Z62: 366129700 | AA62: 269924.4 | AB62: 352383900 | AS62: 2019-12-01 | AT62: 19261636 | AV62: 0.01834951196 | AX62: 129.252 | AZ62: 0.00524977251 | BB62: 1740332 | BD62: 0.01795767625 | BF62: 348107 | BH62: 0.02378389506 | BJ62: 9.025 | BK62: 31.49166667 | BN62: 21.73963547
A63: 2020-01-01 | B63: 235933 | D63: 308310835.9 | F63: 0.9155145855 | G63: 0.8732963404 | I63: 2020-01-01 | J63: 0.07086996582 | L63: 0.03354811059 | N63: 0.0621569718 | O63: 0.03095483349 | P63: 0.06359483063 | Q63: 0.03214045289 | R63: 235933 | S63: 308310835.9 | T63: 0.07841739706 | U63: 0.05462509423 | AS63: 2020-01-01 | AT63: 19041600 | AV63: 0.01660227214 | AX63: 122.048 | AZ63: -0.008231689975 | BB63: 1764837 | BD63: -0.05018091285 | BF63: 351748 | BH63: -0.008263810375 | BJ63: 8.683333333 | BK63: 30.075 | BN63: 22.18028211
A64: 2020-02-01 | B64: 198302 | D64: 295095650.1 | F64: 0.7836198711 | G64: 0.8602335313 | I64: 2020-02-01 | J64: 0.1211293724 | L64: 0.06535751852 | N64: 0.06560514595 | O64: 0.03316942369 | P64: 0.07034197119 | Q64: 0.03707565869 | R64: 198302 | S64: 295095650.1 | T64: 0.09977729012 | U64: 0.06623883148 | AS64: 2020-02-01 | AT64: 19279420 | AV64: 0.02296156175 | AX64: 117.443 | AZ64: 0.005944376397 | BB64: 1594763 | BD64: 0.01511504968 | BF64: 299626 | BH64: 0.04342950671 | BJ64: 6.541666667 | BK64: 31.95833333 | BN64: 21.15151387
A65: 2020-03-01 | B65: 177085 | D65: 270755063.1 | F65: 0.8889100962 | G65: 0.934268697 | I65: 2020-03-01 | J65: -0.1161129634 | L65: -0.08898904932 | N65: 0.0543175517 | O65: 0.02527711198 | P65: 0.0579047299 | Q65: 0.02959691468 | R65: 177085 | S65: 270755063.1 | T65: 0.02305436922 | U65: 0.001906285603 | AS65: 2020-03-01 | AT65: 18445440 | AV65: -0.03411789157 | AX65: 112.03 | AZ65: -0.07472868729 | BB65: 1256510 | BD65: -0.2651335089 | BF65: 266350 | BH65: -0.1711374726 | BJ65: 4.358333333 | BK65: 28.225 | BN65: 23.97137295
A66: 2020-04-01 | B66: 125689 | D66: 202924026.1 | F66: 0.9419234681 | G66: 0.9163232929 | I66: 2020-04-01 | J66: -0.445671493 | L66: -0.3077784201 | N66: 0.02147751332 | O66: 0.005324355634 | P66: 0.01368296138 | Q66: 0.006783833218 | R66: 125689 | S66: 202924026.1 | T66: -0.1703572718 | U66: -0.1136448836 | AS66: 2020-04-01 | AT66: 18396360 | AV66: -0.04098934433 | AX66: 92.216 | AZ66: -0.2455472924 | BB66: 673149 | BD66: -0.6186524359 | BF66: 185844 | BH66: -0.4737190869 | BJ66: 1.166666667 | BK66: 26.25833333 | BN66: 30.26247869
A67: 2020-05-01 | B67: 137057 | D67: 224361104.5 | F67: 1.07038908 | G67: 1.028479769 | I67: 2020-05-01 | J67: -0.4368068311 | L67: -0.3221975178 | N67: -0.008701665651 | O67: -0.01542742391 | P67: -0.03000613415 | Q67: -0.02299143876 | R67: 137057 | S67: 224361104.5 | T67: -0.3439725198 | U67: -0.2423841737 | AS67: 2020-05-01 | AT67: 18584180 | AV67: -0.03847371702 | AX67: 94.882 | AZ67: -0.2873570125 | BB67: 850617 | BD67: -0.5902104357 | BF67: 209854 | BH67: -0.4661168084 | BJ67: -5.3 | BK67: 24.55833333 | BN67: 27.11554737
A68: 2020-06-01 | B68: 170731 | D68: 251748520.4 | F68: 1.107956678 | G68: 1.060449162 | I68: 2020-06-01 | J68: -0.3229719928 | L68: -0.2283098159 | N68: -0.02877729404 | O68: -0.02793946144 | P68: -0.06657263386 | Q68: -0.04190864157 | R68: 170731 | S68: 251748520.4 | T68: -0.3998450672 | U68: -0.2855221771 | AS68: 2020-06-01 | AT68: 18484270 | AV68: -0.0500762924 | AX68: 96.695 | AZ68: -0.2926274361 | BB68: 1159602 | BD68: -0.4227995765 | BF68: 236789 | BH68: -0.3796219396 | BJ68: -12.5 | BK68: 16.76666667 | BN68: 22.65470351
A69: 2020-07-01 | B69: 192602 | D69: 309793315.2 | F69: 1.111431185 | G69: 1.171846856 | I69: 2020-07-01 | J69: -0.2776557886 | L69: -0.1884314249 | N69: -0.04452360584 | O69: -0.03826658611 | P69: -0.1010673639 | Q69: -0.06657465914 | R69: 192602 | S69: 309793315.2 | T69: -0.3434656603 | U69: -0.2435707438 | AS69: 2020-07-01 | AT69: 18673850 | AV69: -0.03195863339 | AX69: 100.703 | AZ69: -0.2587955603 | BB69: 1536122 | BD69: -0.2952039594 | BF69: 255291 | BH69: -0.3280949386 | BJ69: -18.9 | BK69: 14.7 | BN69: 18.30020709
A70: 2020-08-01 | B70: 189083 | D70: 268014332.8 | F70: 0.9611501064 | G70: 1.006492196 | I70: 2020-08-01 | J70: -0.1130039344 | L70: -0.151507267 | N70: -0.0478207739 | O70: -0.0439914049 | P70: -0.1126253772 | Q70: -0.08097914766 | R70: 189083 | S70: 268014332.8 | T70: -0.2453169665 | U70: -0.1897463543 | AS70: 2020-08-01 | AT70: 18591310 | AV70: -0.03445656537 | AX70: 97.202 | AZ70: -0.2082464486 | BB70: 1118663 | BD70: -0.2639997316 | BF70: 252129 | BH70: -0.1569706595 | BJ70: -26.25833333 | BK70: 9.883333333 | BN70: 24.66079414
A71: 2020-09-01 | B71: 211811 | D71: 315899079.5 | F71: 1.04303909 | G71: 1.047707024 | I71: 2020-09-01 | J71: -0.1453754625 | L71: -0.04458022449 | N71: -0.05299220659 | O71: -0.04402099805 | P71: -0.1342978554 | Q71: -0.09128313947 | R71: 211811 | S71: 315899079.5 | T71: -0.1843638293 | U71: -0.1308314785 | AS71: 2020-09-01 | AT71: 18843730 | AV71: -0.01976254443 | AX71: 110.101 | AZ71: -0.1482008711 | BB71: 1632484 | BD71: -0.2206355761 | BF71: 288360 | BH71: -0.1958392013 | BJ71: -26.7 | BK71: 10.76666667 | BN71: 19.62600602
A72: 2020-10-01 | B72: 221674 | D72: 332784582.8 | F72: 1.11125688 | G72: 1.061480201 | I72: 2020-10-01 | J72: -0.1289686282 | L72: -0.04236747317 | N72: -0.05691440857 | O72: -0.04393803691 | P72: -0.1471577106 | Q72: -0.09982803447 | R72: 221674 | S72: 332784582.8 | T72: -0.1298953185 | U72: -0.07778507905 | AS72: 2020-10-01 | AT72: 18986280 | AV72: -0.01017467662 | AX72: 117.96 | AZ72: -0.1163780188 | BB72: 1551357 | BD72: -0.3026847426 | BF72: 333348 | BH72: -0.1491623021 | BJ72: -23.85 | BK72: 11.25833333 | BN72: 23.82694394
A73: 2020-11-01 | B73: 240902 | D73: 346521204.6 | F73: 1.061859236 | G73: 1.064920243 | I73: 2020-11-01 | J73: -0.02656025861 | L73: 0.04457162021 | N73: -0.05546347457 | O73: -0.03989261249 | P73: -0.1535014616 | Q73: -0.09844058165 | R73: 240902 | S73: 346521204.6 | T73: -0.1005918817 | U73: -0.01453338805 | AS73: 2020-11-01 | AT73: 18974450 | AV73: -0.02270697361 | AX73: 123.736 | AZ73: -0.07889290872 | BB73: 1449810 | BD73: -0.1781909783 | BF73: 343223 | BH73: -0.0671919249 | BJ73: -22.28333333 | BK73: 8.95 | BN73: 25.96985066
A74: 2020-12-01 | B74: 214547 | D74: 343789962.7 | F74: 1.002949723 | G74: 0.9745026859 | I74: 2020-12-01 | J74: -0.1053981253 | L74: 0.1022215098 | N74: -0.05767416227 | O74: -0.03403703286 | P74: -0.1698822498 | Q74: -0.09688884964 | R74: 214547 | S74: 343789962.7 | T74: -0.08718311663 | U74: 0.03223177802 | AS74: 2020-12-01 | AT74: 18904850 | AV74: -0.01852314102 | AX74: 121.123 | AZ74: -0.06289264383 | BB74: 1355147 | BD74: -0.2213284592 | BF74: 312302 | BH74: -0.1028563057 | BJ74: -22.15833333 | BK74: 8.591666667 | BN74: 25.11829168
A75: 2021-01-01 | B75: 217796 | D75: 295124309.6 | F75: 0.9155145855 | G75: 0.8732963404 | I75: 2021-01-01 | J75: -0.07687351918 | L75: -0.04277023303 | N75: -0.05847545916 | O75: -0.03437880224 | P75: -0.1809695339 | Q75: -0.1026580128 | R75: 217796 | S75: 295124309.6 | T75: -0.06911613424 | U75: 0.0351729691 | AS75: 2021-01-01 | AT75: 18826630 | AV75: -0.01128949248 | AX75: 114.846 | AZ75: -0.05900957001 | BB75: 1302429 | BD75: -0.2620117325 | BF75: 328109 | BH75: -0.06720436221 | BJ75: -17.35 | BK75: 9.6 | BN75: 27.84742981
A76: 2021-02-01 | B76: 172108 | D76: 290241877.8 | F76: 0.7836198711 | G76: 0.8602335313 | I76: 2021-02-01 | J76: -0.1320914565 | L76: -0.01644813204 | N76: -0.06097030635 | O76: -0.03373142095 | P76: -0.1964462032 | Q76: -0.1081093662 | R76: 172108 | S76: 290241877.8 | T76: -0.1032669247 | U76: 0.01512405906 | AS76: 2021-02-01 | AT76: 18840920 | AV76: -0.02274446015 | AX76: 111.278 | AZ76: -0.05249355006 | BB76: 1212284 | BD76: -0.2398343829 | BF76: 265345 | BH76: -0.1144126344 | BJ76: -14.675 | BK76: 11.34166667 | BN76: 24.57232605
A77: 2021-03-01 | B77: 200172 | D77: 312029251.4 | F77: 0.8889100962 | G77: 0.934268697 | I77: 2021-03-01 | J77: 0.13037242 | L77: 0.1524410579 | N77: -0.05534961339 | O77: -0.02776190221 | P77: -0.1815409218 | Q77: -0.09123531692 | R77: 200172 | S77: 312029251.4 | T77: -0.03475103056 | U77: 0.02657848514 | AS77: 2021-03-01 | AT77: 18793350 | AV77: 0.01886157229 | AX77: 112.345 | AZ77: 0.002811746854 | BB77: 1404107 | BD77: 0.1174658379 | BF77: 299574 | BH77: 0.1247381265 | BJ77: -13.14166667 | BK77: 14.14166667 | BN77: 25.02882408
A78: 2021-04-01 | B78: 206986 | D78: 298269857.2 | F78: 0.9419234681 | G78: 0.9163232929 | I78: 2021-04-01 | J78: 0.646810779 | L78: 0.4698597445 | N78: -0.04100898925 | O78: -0.01608395052 | P78: -0.1208433759 | Q78: -0.04399163287 | R78: 206986 | S78: 298269857.2 | T78: 0.1560441929 | U78: 0.1713977325 | AS78: 2021-04-01 | AT78: 18989920 | AV78: 0.03226507853 | AX78: 116.759 | AZ78: 0.2661468726 | BB78: 1356845 | BD78: 1.015668151 | BF78: 306700 | BH78: 0.6503088612 | BJ78: -4.608333333 | BK78: 19.36666667 | BN78: 25.71336349
A79: 2021-05-01 | B79: 225542 | D79: 325213260.8 | F79: 1.07038908 | G79: 1.028479769 | I79: 2021-05-01 | J79: 0.6456073021 | L79: 0.4495082001 | N79: -0.02605063457 | O79: -0.004308910929 | P79: -0.05075040616 | Q79: 0.01161806934 | R79: 225542 | S79: 325213260.8 | T79: 0.4385070629 | U79: 0.3401984266 | AS79: 2021-05-01 | AT79: 19244510 | AV79: 0.03553183407 | AX79: 129.433 | AZ79: 0.3641470458 | BB79: 1545308 | BD79: 0.816690708 | BF79: 319959 | BH79: 0.5246742974 | BJ79: 0.9583333333 | BK79: 19.125 | BN79: 23.03255205
A80: 2021-06-01 | B80: 228686 | D80: 350949365.6 | F80: 1.107956678 | G80: 1.060449162 | I80: 2021-06-01 | J80: 0.3394521206 | L80: 0.3940473813 | N80: -0.01639362497 | O80: 0.006683555422 | P80: 0.003050239771 | Q80: 0.06047572397 | R80: 228686 | S80: 350949365.6 | T80: 0.5253727418 | U80: 0.4350282671 | AS80: 2021-06-01 | AT80: 19280520 | AV80: 0.04307716778 | AX80: 131.53 | AZ80: 0.3602564765 | BB80: 1798047 | BD80: 0.550572524 | BF80: 349536 | BH80: 0.4761496522 | BJ80: 12.39166667 | BK80: 27.44166667 | BN80: 21.50751209
A81: 2021-07-01 | B81: 240458 | D81: 379748294 | F81: 1.111431185 | G81: 1.171846856 | I81: 2021-07-01 | J81: 0.2484709401 | L81: 0.2258117762 | N81: -0.008727622511 | O81: 0.01388010692 | P81: 0.05309290313 | Q81: 0.1022489218 | R81: 240458 | S81: 379748294 | T81: 0.3882891345 | U81: 0.3435640286 | AS81: 2021-07-01 | AT81: 19546840 | AV81: 0.04674933128 | AX81: 129.688 | AZ81: 0.2878265791 | BB81: 1838250 | BD81: 0.1966822948 | BF81: 348335 | BH81: 0.3644625153 | BJ81: 22.15833333 | BK81: 27.44166667 | BN81: 20.82409206
A82: 2021-08-01 | B82: 229977 | D82: 335259737 | F82: 0.9611501064 | G82: 1.006492196 | I82: 2021-08-01 | J82: 0.2162753923 | L82: 0.2509022691 | N82: -0.002510963868 | O82: 0.02042848338 | P82: 0.0805180045 | Q82: 0.1370021024 | R82: 229977 | S82: 335259737 | T82: 0.265569788 | U82: 0.2849731425 | AS82: 2021-08-01 | AT82: 19195120 | AV82: 0.03247807712 | AX82: 123.314 | AZ82: 0.2686364478 | BB82: 1407563 | BD82: 0.2582547201 | BF82: 320887 | BH82: 0.272709605 | BJ82: 26.74166667 | BK82: 27.44166667 | BN82: 24.90241181
A83: 2021-09-01 | B83: 234177 | D83: 356549869.7 | F83: 1.04303909 | G83: 1.047707024 | I83: 2021-09-01 | J83: 0.1055941382 | L83: 0.1286828382 | N83: 0.0007344730812 | O83: 0.0238424833 | P83: 0.106272121 | Q83: 0.153700562 | R83: 234177 | S83: 356549869.7 | T83: 0.1872228288 | U83: 0.1990039548 | AS83: 2021-09-01 | AT83: 19443350 | AV83: 0.03182066396 | AX83: 132.444 | AZ83: 0.2029318535 | BB83: 1923846 | BD83: 0.1784777064 | BF83: 341566 | BH83: 0.184512415 | BJ83: 26.075 | BK83: 25.775 | BN83: 20.00787273
A84: 2021-10-01 | B84: 244825 | D84: 344067064.4 | F84: 1.11125688 | G84: 1.061480201 | I84: 2021-10-01 | J84: 0.1044371464 | L84: 0.03390325818 | N84: 0.003893461479 | O84: 0.0241659805 | P84: 0.1316041727 | Q84: 0.161958151 | R84: 244825 | S84: 344067064.4 | T84: 0.1387976896 | U84: 0.1300086579 | AS84: 2021-10-01 | AT84: 19699510 | AV84: 0.03756554733 | AX84: 136.749 | AZ84: 0.1592828077 | BB84: 1892584 | BD84: 0.2199538855 | BF84: 379790 | BH84: 0.1393198699 | BJ84: 27.74166667 | BK84: 23.8 | BN84: 22.41855205
A85: 2021-11-01 | B85: 275709 | D85: 376661659.9 | F85: 1.061859236 | G85: 1.064920243 | I85: 2021-11-01 | J85: 0.1444861396 | L85: 0.08698011815 | N85: 0.008398539148 | O85: 0.02620096158 | P85: 0.1496522611 | Q85: 0.1657275923 | R85: 275709 | S85: 376661659.9 | T85: 0.119106685 | U85: 0.08246917778 | AS85: 2021-11-01 | AT85: 19726820 | AV85: 0.03965174221 | AX85: 145.402 | AZ85: 0.175098597 | BB85: 2021546 | BD85: 0.3943523634 | BF85: 428378 | BH85: 0.2481040024 | BJ85: 29.23333333 | BK85: 26.09166667 | BN85: 24.639746
A86: 2021-12-01 | B86: 246557 | D86: 355926709.2 | F86: 1.002949723 | G86: 0.9745026859 | I86: 2021-12-01 | J86: 0.1491980778 | L86: 0.03530279482 | N86: 0.01230517168 | O86: 0.02648439822 | P86: 0.1760275475 | Q86: 0.1585141058 | R86: 246557 | S86: 355926709.2 | T86: 0.1328680314 | U86: 0.05235060692 | AS86: 2021-12-01 | AT86: 19403180 | AV86: 0.02635990235 | AX86: 138.628 | AZ86: 0.1445225102 | BB86: 1681550 | BD86: 0.2408616925 | BF86: 379548 | BH86: 0.2153236291 | BJ86: 28.58333333 | BK86: 28 | BN86: 25.17287165
A87: 2022-01-01 | B87: 239777 | D87: 340922972.3 | F87: 0.9155145855 | G87: 0.8732963404 | I87: 2022-01-01 | J87: 0.1009247185 | L87: 0.1551843112 | N87: 0.01473287143 | O87: 0.02983528581 | P87: 0.1948805522 | Q87: 0.1761822504 | R87: 239777 | S87: 340922972.3 | T87: 0.1318955209 | U87: 0.08937760675 | AS87: 2022-01-01 | AT87: 19534920 | AV87: 0.03762170925 | AX87: 131.75 | AZ87: 0.1471884088 | BB87: 1596332 | BD87: 0.2256575982 | BF87: 369182 | BH87: 0.1251809612 | BJ87: 25.35833333 | BK87: 26.26666667 | BN87: 27.19252243
A88: 2022-02-01 | B88: 158861 | D88: 329485975.2 | F88: 0.7836198711 | G88: 0.8602335313 | I88: 2022-02-01 | J88: -0.07696911242 | L88: 0.1352116988 | N88: 0.01278977626 | O88: 0.03246615758 | P88: 0.2028290443 | Q88: 0.1892047223 | R88: 158861 | S88: 329485975.2 | T88: 0.06740662188 | U88: 0.1045889936 | AS88: 2022-02-01 | AT88: 19661610 | AV88: 0.04355891326 | AX88: 128.219 | AZ88: 0.152240335 | BB88: 1444057 | BD88: 0.1911870486 | BF88: 256033 | BH88: -0.03509393431 | BJ88: 23.39166667 | BK88: 18.74166667 | BN88: 22.71374785
A89: 2022-03-01 | B89: 170474 | D89: 341254197.4 | F89: 0.8889100962 | G89: 0.934268697 | I89: 2022-03-01 | J89: -0.1483624083 | L89: 0.09366091768 | N89: 0.008913804055 | O89: 0.03406572566 | P89: 0.1777796085 | Q89: 0.1835198677 | R89: 170474 | S89: 341254197.4 | T89: -0.03552762695 | U89: 0.127332613 | AS89: 2022-03-01 | AT89: 19764000 | AV89: 0.05164858846 | AX89: 129.688 | AZ89: 0.1543726913 | BB89: 1671841 | BD89: 0.1906792004 | BF89: 275808 | BH89: -0.07933265237 | BJ89: 20.86666667 | BK89: 15.35 | BN89: 23.81424392
A90: 2022-04-01 | B90: 171953 | C90: 171953 | D90: 298650888.5 | E90: 298650888.5 | F90: 0.9419234681 | G90: 0.9163232929 | I90: 2022-04-01 | J90: -0.169252993 | K90: -0.169252993 | L90: 0.001277471705 | M90: 0.001277471705 | N90: 0.004590259503 | O90: 0.03326643863 | P90: 0.1227239758 | Q90: 0.1521808045 | R90: 171953 | S90: 298650888.5 | T90: -0.1346151854 | U90: 0.07645412674 | AS90: 2022-04-01 | AT90: 20098120 | AU90: 20098120 | AV90: 0.05835727586 | AW90: 0.05835727586 | AX90: 129.1676497 | AY90: 129.1676497 | AZ90: 0.1062757449 | BA90: 0.1062757449 | BB90: 1450093 | BC90: 1450093 | BD90: 0.06872413577 | BE90: 0.06872413577 | BF90: 255766.6998 | BG90: 255766.6998 | BH90: -0.1660687975 | BI90: -0.1660687975 | BJ90: 16.26666667 | BK90: 12.30833333 | BN90: 34.03655877 | BO90: 34.03655877
A91: 2022-05-01 | C91: 197808.2229 | E91: 339320240.9 | F91: 1.07038908 | G91: 1.028479769 | I91: 2022-05-01 | K91: -0.1030366992 | M91: 0.04337762883 | N91: 0.001817666403 | O91: 0.03352822868 | P91: 0.07297331719 | Q91: 0.1245090637 | R91: 202302.8968 | S91: 339320240.9 | T91: -0.1390392022 | U91: 0.04672622071 | AS91: 2022-05-01 | AU91: 20118642.27 | AW91: 0.04542242288 | AY91: 133.5568131 | BA91: 0.03186060031 | BC91: 1591100.745 | BE91: 0.02963340962 | BG91: 286847.3048 | BI91: -0.1034873069 | BJ91: 18.35833333 | BK91: 13.85833333 | BO91: 34.05813991
A92: 2022-06-01 | C92: 205737.2551 | E92: 354924265 | F92: 1.107956678 | G92: 1.060449162 | I92: 2022-06-01 | K92: 0.03694831107 | M92: 0.01132613377 | N92: 0.002711929038 | O92: 0.03292476208 | P92: 0.05166620138 | Q92: 0.0961142775 | R92: 237135.5615 | S92: 354924265 | T92: -0.07535010109 | U92: 0.0189473475 | AS92: 2022-06-01 | AU92: 20050683.64 | AW92: 0.03994516928 | AY92: 134.6486361 | BA92: 0.02371045474 | BC92: 1948284.335 | BE92: 0.08355584448 | BG92: 313995.9694 | BI92: -0.1016777403 | BO92: 30.2024301
A93: 2022-07-01 | C93: 221423.9681 | E93: 400500674.4 | F93: 1.111431185 | G93: 1.171846856 | I93: 2022-07-01 | K93: 0.02714529377 | M93: 0.05464772524 | N93: 0.003348857334 | O93: 0.03354540369 | P93: 0.03462136083 | Q93: 0.08162029458 | R93: 246985.303 | S93: 400500674.4 | T93: -0.01189348668 | U93: 0.03677796987 | AS93: 2022-07-01 | AU93: 19865915.57 | AW93: 0.01632363928 | AY93: 136.0480627 | BA93: 0.04904125847 | BC93: 2221218.183 | BE93: 0.2083330247 | BG93: 326769.2482 | BI93: -0.06191095291 | BO93: 27.32240491
A94: 2022-08-01 | C94: 212496.6848 | E94: 353449658 | F94: 0.9611501064 | G94: 1.006492196 | I94: 2022-08-01 | AS94: 2022-08-01
A95: 2022-09-01 | C95: 235469.5332 | E95: 389343657.1 | F95: 1.04303909 | G95: 1.047707024 | I95: 2022-09-01 | AS95: 2022-09-01
A96: 2022-10-01 | C96: 258304.3412 | E96: 397274770.3 | F96: 1.11125688 | G96: 1.061480201 | I96: 2022-10-01 | AS96: 2022-10-01
A97: 2022-11-01 | C97: 264479.5042 | E97: 402689821.8 | F97: 1.061859236 | G97: 1.064920243 | I97: 2022-11-01 | AS97: 2022-11-01
A98: 2022-12-01 | C98: 246687.3062 | E98: 386679241.5 | F98: 1.002949723 | G98: 0.9745026859 | I98: 2022-12-01 | AS98: 2022-12-01
A99: 2023-01-01 | F99: 0.9155145855 | G99: 0.8732963404 | I99: 2023-01-01
A100: 2023-02-01 | F100: 0.7836198711 | G100: 0.8602335313 | I100: 2023-02-01 | BJ100: Clima_Sector_12m | BK100: Empleo3M_Sector_12m
A101: 2023-03-01 | F101: 0.8889100962 | G101: 0.934268697 | I101: 2023-03-01 | BI101: max | BJ101: 46.55833333 | BK101: 47.225
A102: 2023-04-01 | F102: 0.9419234681 | G102: 0.9163232929 | I102: 2023-04-01 | BI102: min. | BJ102: -26.7 | BK102: 8.591666667
A103: 2023-05-01 | F103: 1.07038908 | G103: 1.028479769 | I103: 2023-05-01 | BI103: avg. | BJ103: 21.72265918 | BK103: 30.18183521
A104: 2023-06-01 | F104: 1.107956678 | G104: 1.060449162 | I104: 2023-06-01 | BI104: desvest | BJ104: 19.59135675 | BK104: 10.49878951
A105: 2023-07-01 | F105: 1.111431185 | G105: 1.171846856 | I105: 2023-07-01 | BJ105: Este grafico no tiene prevision
A106: 2023-08-01 | F106: 0.9611501064 | G106: 1.006492196 | I106: 2023-08-01 | BJ106: Aquí en BJ y BK termina la actualizacion de graficos
A107: 2023-09-01 | F107: 1.04303909 | G107: 1.047707024 | I107: 2023-09-01 | BJ107: Son seis graficos, se saltan dos, penultimo y antepenultimo.
A108: 2023-10-01 | F108: 1.11125688 | G108: 1.061480201 | I108: 2023-10-01 | BJ108: Tambien se actualizan sumando un dato mas al rango por la dcha.
A109: 2023-11-01 | F109: 1.061859236 | G109: 1.064920243 | I109: 2023-11-01
A110: 2023-12-01 | F110: 1.002949723 | G110: 0.9745026859 | I110: 2023-12-01
B111: viene de Eviews
F112: factores Estacionalidad. | J112: 0.06085770436 | L112: 0.03052102481
F113: periodo 2015-2019 | J113: -0.160543845 | L113: -0.09403853614
F114: se actualiza cuando llega al cierre del año | J114: 0.2101449567 | L114: 0.1806850895
Q117: 1.333333333 | R117: por coef. Horas
Q119: si 5000 por iMensual | BX119: ESTA LLEVA SOLO CIERRE OBSERVADO
Q120: 6666.666667 | R120: por iPrevision | BX120: QUE SUELE SER EL MISMO MES DE CIERRE DE CIFRAS ASEMPLEO
Q121: 555.5555556 | R121: unitario | BX121: O, COMO MUCHO, EL SIGUIENTE.
Q122: 3333.333333 | R122: semestre
R124: a descontar Agosto, plus de urgencia en junio y ajuste alza por costes
R125: a lo que se suma el incremento justificado por trabajo,
C140: b | D140: a | E140: b | F140: a
A141: 2019-01-01 | C141: 249801 | E141: 327669711.7
A142: 2019-02-01 | C142: 201433 | E142: 305837745.2
A143: 2019-03-01 | C143: 224512 | E143: 323862465
A144: 2019-04-01 | C144: 253926 | E144: 322516955.3
A145: 2019-05-01 | C145: 271955 | E145: 367643444.6
A146: 2019-06-01 | C146: 274286 | E146: 359918540.2
A147: 2019-07-01 | C147: 291354 | E147: 419298301.4
A148: 2019-08-01 | C148: 230288 | E148: 343156055.5
A149: 2019-09-01 | C149: 266525 | E149: 361129306.9 | H149: a-b | I149: a-b
A150: 2019-10-01 | C150: 290990 | D150: 290990 | E150: 382719372.7 | F150: 382719372.7 | H150: 0 | I150: 0
A151: 2019-11-01 | C151: 263918.0148 | D151: 263918.0148 | E151: 360568692.2 | F151: 362070643.8 | H151: 0 | I151: 1501951.61
A152: 2019-12-01 | C152: 255642.7173 | D152: 255642.7173 | E152: 343141416.2 | F152: 345232144.8 | H152: 0 | I152: 2090728.565
A153: 2020-01-01 | C153: 250354.2564 | D153: 250354.2564 | E153: 329524101.6 | F153: 330507381.8 | H153: 0 | I153: 983280.2278
A154: 2020-02-01 | C154: 207837.839 | D154: 207837.839 | E154: 313158321.8 | F154: 314116466.8 | H154: 0 | I154: 958144.9085
A155: 2020-03-01 | C155: 232264.8078 | D155: 232264.8078 | E155: 338558732.4 | F155: 340954914.3 | H155: 0 | I155: 2396181.903
A156: 2020-04-01 | C156: 255086.2905 | D156: 255086.2905 | E156: 340153186 | F156: 342267471.8 | H156: 0 | I156: 2114285.848
A157: 2020-05-01 | C157: 280905.8301 | D157: 280905.8301 | E157: 381805793.2 | F157: 385567040.4 | H157: 0 | I157: 3761247.248 | BX157: NO SE USAN
A158: 2020-06-01 | C158: 288287.1338 | D158: 288287.1338 | E158: 393351626.3 | F158: 397954905.8 | H158: 0 | I158: 4603279.525
A159: 2020-07-01 | C159: 294085.8743 | D159: 294085.8743 | E159: 441093805.6 | F159: 440505556.8 | H159: 0 | I159: -588248.7914
A160: 2020-08-01 | C160: 240664.6627 | D160: 240664.6627 | E160: 363693438.6 | F160: 366613830.3 | H160: 0 | I160: 2920391.726
A161: 2020-09-01 | C161: 276808.7376 | D161: 276808.7376 | E161: 389093874.8 | F161: 391914977 | H161: 0 | I161: 2821102.227
A162: 2020-10-01 | C162: 305157.6209 | D162: 305157.6209 | E162: 408145102 | F162: 412104638.4 | H162: 0 | I162: 3959536.392
A163: 2020-11-01 | C163: 279663.1225 | D163: 279663.1225 | E163: 384477338.3 | F163: 388468928.7 | H163: 0 | I163: 3991590.435
A164: 2020-12-01 | C164: 269189.0896 | D164: 269189.0896 | E164: 370345696.6 | F164: 373748330.7 | H164: 0 | I164: 3402634.122
E166: 368365080.4 | I166: 2494007.568 | J166: 0.006770477715
D167: 2019 | E167: 4217462007
D168: 2020 | E168: 4453401017 | F168: 4484724443 | I168: 31323425.77 | J168: 0.007033596492
BX175: NO SE USAN

Sheet Afiliados (hidden)
B1: Afiliados (fin de mes) | C1: Afiliados (media del mes)
A2: 2001-01-01 | B2: 15204072 | C2: 15194299.22
A3: 2001-02-01 | B3: 15349934 | C3: 15326583.35
A4: 2001-03-01 | B4: 15514507 | C4: 15455386.4
A5: 2001-04-01 | B5: 15556128 | C5: 15551821.04
A6: 2001-05-01 | B6: 15679793 | C6: 15688072.27
A7: 2001-06-01 | B7: 15827451 | C7: 15802406.55
A8: 2001-07-01 | B8: 15844140 | C8: 15941613.6
A9: 2001-08-01 | B9: 15676271 | C9: 15829410.01
A10: 2001-09-01 | B10: 15756672 | C10: 15807572.64
A11: 2001-10-01 | B11: 15765273 | C11: 15845332.53
A12: 2001-11-01 | B12: 15876290 | C12: 15885774.66
A13: 2001-12-01 | B13: 15748752 | C13: 15901915.26 | E13: Afiliados (fin de mes) % i.a. | F13: Afiliados (media del mes) % i.a.
A14: 2002-01-01 | B14: 15727566 | C14: 15716520.01 | D14: 2002-01-01 | E14: 3.443117081 | F14: 3.436952126
A15: 2002-02-01 | B15: 15822158 | C15: 15834338.25 | D15: 2002-02-01 | E15: 3.076391078 | F15: 3.312903394
A16: 2002-03-01 | B16: 15912352 | C16: 15927218.2 | D16: 2002-03-01 | E16: 2.564341877 | F16: 3.052863175
A17: 2002-04-01 | B17: 16023487 | C17: 16025754.18 | D17: 2002-04-01 | E17: 3.004340155 | F17: 3.047444661
A18: 2002-05-01 | B18: 16154714 | C18: 16183522.4 | D18: 2002-05-01 | E18: 3.028872894 | F18: 3.158132634
A19: 2002-06-01 | B19: 16290434 | C19: 16260265.76 | D19: 2002-06-01 | E19: 2.925189912 | F19: 2.897401788
A20: 2002-07-01 | B20: 16326631 | C20: 16419239.07 | D20: 2002-07-01 | E20: 3.045233127 | F20: 2.996092378
A21: 2002-08-01 | B21: 16276570 | C21: 16321804.82 | D21: 2002-08-01 | E21: 3.829348191 | F21: 3.110632738
A22: 2002-09-01 | B22: 16187368 | C22: 16293662.04 | D22: 2002-09-01 | E22: 2.733419849 | F22: 3.075041381
A23: 2002-10-01 | B23: 16236870 | C23: 16340244.6 | D23: 2002-10-01 | E23: 2.991365896 | F23: 3.123393397
A24: 2002-11-01 | B24: 16369029 | C24: 16376762.68 | D24: 2002-11-01 | E24: 3.103615517 | F24: 3.090740178
A25: 2002-12-01 | B25: 16188390 | C25: 16380197.69 | D25: 2002-12-01 | E25: 2.79157358 | F25: 3.0077033
A26: 2003-01-01 | B26: 16207199 | C26: 16217209.48 | D26: 2003-01-01 | E26: 3.049632728 | F26: 3.18575276
A27: 2003-02-01 | B27: 16335717 | C27: 16365395.65 | D27: 2003-02-01 | E27: 3.245821461 | F27: 3.353833874
A28: 2003-03-01 | B28: 16455090 | C28: 16482972.57 | D28: 2003-03-01 | E28: 3.410796845 | F28: 3.489337328
A29: 2003-04-01 | B29: 16559933 | C29: 16594317.07 | D29: 2003-04-01 | E29: 3.347873032 | F29: 3.547807383
A30: 2003-05-01 | B30: 16707449 | C30: 16735791.04 | D30: 2003-05-01 | E30: 3.421509041 | F30: 3.412536692
A31: 2003-06-01 | B31: 16734941 | C31: 16818072.16 | D31: 2003-06-01 | E31: 2.728638169 | F31: 3.430487596
A32: 2003-07-01 | B32: 16817780 | C32: 16941956.13 | D32: 2003-07-01 | E32: 3.008269128 | F32: 3.183564462
A33: 2003-08-01 | B33: 16660731 | C33: 16810036.2 | D33: 2003-08-01 | E33: 2.36020857 | F33: 2.991283044
A34: 2003-09-01 | B34: 16680559 | C34: 16785475.83 | D34: 2003-09-01 | E34: 3.046764613 | F34: 3.01843618
A35: 2003-10-01 | B35: 16738305 | C35: 16830082.65 | D35: 2003-10-01 | E35: 3.088249151 | F35: 2.997740009
A36: 2003-11-01 | B36: 16866901 | C36: 16850235.6 | D36: 2003-11-01 | E36: 3.041548769 | F36: 2.891126465
A37: 2003-12-01 | B37: 16589561 | C37: 16826224.21 | D37: 2003-12-01 | E37: 2.478140198 | F37: 2.722961764
A38: 2004-01-01 | B38: 16713457 | C38: 16640851.45 | D38: 2004-01-01 | E38: 3.123661282 | F38: 2.612298808
A39: 2004-02-01 | B39: 16839767 | C39: 16808648.85 | D39: 2004-02-01 | E39: 3.085570104 | F39: 2.708478362
A40: 2004-03-01 | B40: 16894920 | C40: 16930836.65 | D40: 2004-03-01 | E40: 2.672911543 | F40: 2.717131744
A41: 2004-04-01 | B41: 16998997 | C41: 17023372.15 | D41: 2004-04-01 | E41: 2.651363384 | F41: 2.585554309
A42: 2004-05-01 | B42: 17135324 | C42: 17174293.95 | D42: 2004-05-01 | E42: 2.560983427 | F42: 2.620150484
A43: 2004-06-01 | B43: 17156672 | C43: 17276512.78 | D43: 2004-06-01 | E43: 2.520062664 | F43: 2.725880919
A44: 2004-07-01 | B44: 17280888 | C44: 17414516.31 | D44: 2004-07-01 | E44: 2.753680926 | F44: 2.789289362
A45: 2004-08-01 | B45: 17073043 | C45: 17260174.65 | D45: 2004-08-01 | E45: 2.474753359 | F45: 2.67779584
A46: 2004-09-01 | B46: 17143750 | C46: 17247118.72 | D46: 2004-09-01 | E46: 2.7768314 | F46: 2.750252031
A47: 2004-10-01 | B47: 17264424 | C47: 17314217.05 | D47: 2004-10-01 | E47: 3.143203568 | F47: 2.876601441
A48: 2004-11-01 | B48: 17318242 | C48: 17349474.24 | D48: 2004-11-01 | E48: 2.675897606 | F48: 2.962799167
A49: 2004-12-01 | B49: 17161920 | C49: 17340361.05 | D49: 2004-12-01 | E49: 3.450115407 | F49: 3.055568698
A50: 2005-01-01 | B50: 17188173 | C50: 17180940.45 | D50: 2005-01-01 | E50: 2.840322023 | F50: 3.245561092
A51: 2005-02-01 | B51: 17290315 | C51: 17320383.8 | D51: 2005-02-01 | E51: 2.675500201 | F51: 3.044474036
A52: 2005-03-01 | B52: 17383847 | C52: 17430544.38 | D52: 2005-03-01 | E52: 2.893929063 | F52: 2.951465071
A53: 2005-04-01 | B53: 17576953 | C53: 17575463.01 | D53: 2005-04-01 | E53: 3.399941773 | F53: 3.243134528
A54: 2005-05-01 | B54: 17789125 | C54: 17789655.54 | D54: 2005-05-01 | E54: 3.815515832 | F54: 3.583038649
A55: 2005-06-01 | B55: 17942395 | C55: 18019758.11 | D55: 2005-06-01 | E55: 4.579693544 | F55: 4.302056436
A56: 2005-07-01 | B56: 18157011 | C56: 18260394.07 | D56: 2005-07-01 | E56: 5.069895714 | F56: 4.857314122
A57: 2005-08-01 | B57: 17968476 | C57: 18168312.59 | D57: 2005-08-01 | E57: 5.244718238 | F57: 5.261464373
A58: 2005-09-01 | B58: 18094408 | C58: 18196939.54 | D58: 2005-09-01 | E58: 5.545216187 | F58: 5.507127512
A59: 2005-10-01 | B59: 18194803 | C59: 18294813.4 | D59: 2005-10-01 | E59: 5.388995312 | F59: 5.663532732
A60: 2005-11-01 | B60: 18283385 | C60: 18330429.81 | D60: 2005-11-01 | E60: 5.572984833 | F60: 5.654093931
A61: 2005-12-01 | B61: 18156182 | C61: 18316322.95 | D61: 2005-12-01 | E61: 5.793419384 | F61: 5.628267469
A62: 2006-01-01 | B62: 18123841 | C62: 18154960.29 | D62: 2006-01-01 | E62: 5.443673391 | F62: 5.66918815
A63: 2006-02-01 | B63: 18238966 | C63: 18286896.75 | D63: 2006-02-01 | E63: 5.486603338 | F63: 5.580205157
A64: 2006-03-01 | B64: 18360036 | C64: 18415427.05 | D64: 2006-03-01 | E64: 5.61549466 | F64: 5.65032651
A65: 2006-04-01 | B65: 18559178 | C65: 18540308.85 | D65: 2006-04-01 | E65: 5.588141471 | F65: 5.489732131
A66: 2006-05-01 | B66: 18640331 | C66: 18696526.29 | D66: 2006-05-01 | E66: 4.784979587 | F66: 5.097742044
A67: 2006-06-01 | B67: 18642858 | C67: 18807670.37 | D67: 2006-06-01 | E67: 3.903954851 | F67: 4.372490769
A68: 2006-07-01 | B68: 18771167 | C68: 18944956.34 | D68: 2006-07-01 | E68: 3.382473029 | F68: 3.748891001
A69: 2006-08-01 | B69: 18583552 | C69: 18760546.6 | D69: 2006-08-01 | E69: 3.42308385 | F69: 3.259708391
A70: 2006-09-01 | B70: 18814068 | C70: 18777097.11 | D70: 2006-09-01 | E70: 3.977250872 | F70: 3.188215077
A71: 2006-10-01 | B71: 18767751 | C71: 18866359.01 | D71: 2006-10-01 | E71: 3.148965119 | F71: 3.124085485
A72: 2006-11-01 | B72: 18884115 | C72: 18922822.34 | D72: 2006-11-01 | E72: 3.285660724 | F72: 3.231743806
A73: 2006-12-01 | B73: 18770259 | C73: 18925995.79 | D73: 2006-12-01 | E73: 3.382192357 | F73: 3.328576602
A74: 2007-01-01 | B74: 18757058 | C74: 18778596.86 | D74: 2007-01-01 | E74: 3.493834447 | F74: 3.435075374
A75: 2007-02-01 | B75: 18871589 | C75: 18915997.35 | D75: 2007-02-01 | E75: 3.468524477 | F75: 3.440171444
A76: 2007-03-01 | B76: 19085110 | C76: 19058951.27 | D76: 2007-03-01 | E76: 3.94919705 | F76: 3.49448437
A77: 2007-04-01 | B77: 19109008 | C77: 19151216.01 | D77: 2007-04-01 | E77: 2.96257733 | F77: 3.295021485
A78: 2007-05-01 | B78: 19234065 | C78: 19303188.69 | D78: 2007-05-01 | E78: 3.185211679 | F78: 3.244786708
A79: 2007-06-01 | B79: 19358772 | C79: 19377776.3 | D79: 2007-06-01 | E79: 3.840151548 | F79: 3.031241609
A80: 2007-07-01 | B80: 19302685 | C80: 19493050.2 | D80: 2007-07-01 | E80: 2.831566093 | F80: 2.893085897
A81: 2007-08-01 | B81: 19047968 | C81: 19286185.19 | D81: 2007-08-01 | E81: 2.499070145 | F81: 2.801829825
A82: 2007-09-01 | B82: 19307990 | C82: 19290985.35 | D82: 2007-09-01 | E82: 2.625280189 | F82: 2.736782139
A83: 2007-10-01 | B83: 19232271 | C83: 19371683.5 | D83: 2007-10-01 | E83: 2.475096776 | F83: 2.678442034
A84: 2007-11-01 | B84: 19325697 | C84: 19393158.91 | D84: 2007-11-01 | E84: 2.338378049 | F84: 2.485551899
A85: 2007-12-01 | B85: 19195755 | C85: 19372777.08 | D85: 2007-12-01 | E85: 2.2668627 | F85: 2.360675205
A86: 2008-01-01 | B86: 19111058 | C86: 19161851.01 | D86: 2008-01-01 | E86: 1.887289574 | F86: 2.040909408
A87: 2008-02-01 | B87: 19176237 | C87: 19245226.76 | D87: 2008-02-01 | E87: 1.614320871 | F87: 1.740481371
A88: 2008-03-01 | B88: 19224988 | C88: 19314410.13 | D88: 2008-03-01 | E88: 0.732916918 | F88: 1.340361578
A89: 2008-04-01 | B89: 19251454 | C89: 19356269.42 | D89: 2008-04-01 | E89: 0.7454390097 | F89: 1.070706998
A90: 2008-05-01 | B90: 19384100 | C90: 19409641.57 | D90: 2008-05-01 | E90: 0.7800483153 | F90: 0.5514782128
A91: 2008-06-01 | B91: 19184842 | C91: 19358953.44 | D91: 2008-06-01 | E91: -0.8984557492 | F91: -0.09713632622
A92: 2008-07-01 | B92: 19169826 | C92: 19382222.56 | D92: 2008-07-01 | E92: -0.6882928463 | F92: -0.5685495028
A93: 2008-08-01 | B93: 19055340 | C93: 19137556.15 | D93: 2008-08-01 | E93: 0.03870229097 | F93: -0.7706502791
A94: 2008-09-01 | B94: 18837302 | C94: 19020359.47 | D94: 2008-09-01 | E94: -2.437788708 | F94: -1.402861881
A95: 2008-10-01 | B95: 18706423 | C95: 18918473.21 | D95: 2008-10-01 | E95: -2.734196081 | F95: -2.339550355
A96: 2008-11-01 | B96: 18659607 | C96: 18721386.65 | D96: 2008-11-01 | E96: -3.446654473 | F96: -3.463965118
A97: 2008-12-01 | B97: 18305613 | C97: 18531311.74 | D97: 2008-12-01 | E97: -4.637181502 | F97: -4.343545257
A98: 2009-01-01 | B98: 18150678 | C98: 18181742.7 | D98: 2009-01-01 | E98: -5.025258152 | F98: -5.114893699
A99: 2009-02-01 | B99: 18075777 | C99: 18112610.6 | D99: 2009-02-01 | E99: -5.738664995 | F99: -5.885179604
A100: 2009-03-01 | B100: 17967287 | C100: 18058121.78 | D100: 2009-03-01 | E100: -6.542011886 | F100: -6.504409617
A101: 2009-04-01 | B101: 17955064 | C101: 18034183.25 | D101: 2009-04-01 | E101: -6.733984872 | F101: -6.830273651
A102: 2009-05-01 | B102: 18100171 | C102: 18103487.35 | D102: 2009-05-01 | E102: -6.623619358 | F102: -6.729409275
A103: 2009-06-01 | B103: 17917981 | C103: 18097986.02 | D103: 2009-06-01 | E103: -6.603447659 | F103: -6.513613579
A104: 2009-07-01 | B104: 17958362 | C104: 18143554.01 | D104: 2009-07-01 | E104: -6.319640043 | F104: -6.390745675
A105: 2009-08-01 | B105: 17796399 | C105: 18001310.04 | D105: 2009-08-01 | E105: -6.606762199 | F105: -5.937258138
A106: 2009-09-01 | B106: 17791858 | C106: 17935094.55 | D106: 2009-09-01 | E106: -5.54986059 | F106: -5.705806569
A107: 2009-10-01 | B107: 17870659 | C107: 17908945.33 | D107: 2009-10-01 | E107: -4.467791624 | F107: -5.336201652
A108: 2009-11-01 | B108: 17777153 | C108: 17847669.06 | D108: 2009-11-01 | E108: -4.729220717 | F108: -4.666949123
A109: 2009-12-01 | B109: 17640018 | C109: 17803838.94 | D109: 2009-12-01 | E109: -3.636015904 | F109: -3.925641154
A110: 2010-01-01 | B110: 17546714 | C110: 17546011.05 | D110: 2010-01-01 | E110: -3.327501044 | F110: -3.496538591
A111: 2010-02-01 | B111: 17550412 | C111: 17572351.15 | D111: 2010-02-01 | E111: -2.906458738 | F111: -2.982780682
A112: 2010-03-01 | B112: 17479448 | C112: 17594808.39 | D112: 2010-03-01 | E112: -2.715151152 | F112: -2.565678733
A113: 2010-04-01 | B113: 17604183 | C113: 17648660.1 | D113: 2010-04-01 | E113: -1.954217484 | F113: -2.137735569
A114: 2010-05-01 | B114: 17699572 | C114: 17761897.38 | D114: 2010-05-01 | E114: -2.213233234 | F114: -1.886873857
A115: 2010-06-01 | B115: 17587252 | C115: 17785781.72 | D115: 2010-06-01 | E115: -1.845793898 | F115: -1.725077584
A116: 2010-07-01 | B116: 17795844 | C116: 17848322.63 | D116: 2010-07-01 | E116: -0.9049711772 | F116: -1.627197074
A117: 2010-08-01 | B117: 17509439 | C117: 17716464.27 | D117: 2010-08-01 | E117: -1.612461038 | F117: -1.582361336
A118: 2010-09-01 | B118: 17554774 | C118: 17671479.63 | D118: 2010-09-01 | E118: -1.33254211 | F118: -1.469827322
A119: 2010-10-01 | B119: 17636975 | C119: 17666149.05 | D119: 2010-10-01 | E119: -1.307640642 | F119: -1.355726289
A120: 2010-11-01 | B120: 17539607 | C120: 17612709.38 | D120: 2010-11-01 | E120: -1.336243211 | F120: -1.31647264
A121: 2010-12-01 | B121: 17478095 | C121: 17584981.63 | D121: 2010-12-01 | E121: -0.9179299023 | F121: -1.229270332
A122: 2011-01-01 | B122: 17276530 | C122: 17361838.5 | D122: 2011-01-01 | E122: -1.539798278 | F122: -1.049654816
A123: 2011-02-01 | B123: 17298626 | C123: 17347094.3 | D123: 2011-02-01 | E123: -1.434644383 | F123: -1.281882248
A124: 2011-03-01 | B124: 17325399 | C124: 17392754.17 | D124: 2011-03-01 | E124: -0.8813150164 | F124: -1.148374086
A125: 2011-04-01 | B125: 17498964 | C125: 17474200.74 | D125: 2011-04-01 | E125: -0.5976931733 | F125: -0.9885133433
A126: 2011-05-01 | B126: 17497250 | C126: 17592190.64 | D126: 2011-05-01 | E126: -1.143089788 | F126: -0.9554538931
A127: 2011-06-01 | B127: 17362369 | C127: 17586578.65 | D127: 2011-06-01 | E127: -1.278670482 | F127: -1.120013015
A128: 2011-07-01 | B128: 17591403 | C128: 17637351.63 | D128: 2011-07-01 | E128: -1.148813172 | F128: -1.182021439
A129: 2011-08-01 | B129: 17287084 | C129: 17500517.37 | D129: 2011-08-01 | E129: -1.269915044 | F129: -1.218905176
A130: 2011-09-01 | B130: 17255382 | C130: 17435561.63 | D130: 2011-09-01 | E130: -1.705473394 | F130: -1.335021203
A131: 2011-10-01 | B131: 17206525 | C131: 17360312.55 | D131: 2011-10-01 | E131: -2.440611273 | F131: -1.731200723
A132: 2011-11-01 | B132: 17204030 | C132: 17248530.06 | D132: 2011-11-01 | E132: -1.913252674 | F132: -2.067707541
A133: 2011-12-01 | B133: 17111792 | C133: 17229921.5 | D133: 2011-12-01 | E133: -2.095783322 | F133: -2.019110042
A134: 2012-01-01 | B134: 16819725 | C134: 16958267.14 | D134: 2012-01-01 | E134: -2.644078412 | F134: -2.324473644
A135: 2012-02-01 | B135: 16809794 | C135: 16897111.57 | D135: 2012-02-01 | E135: -2.825842931 | F135: -2.593994834
A136: 2012-03-01 | B136: 16885759 | C136: 16902530.45 | D136: 2012-03-01 | E136: -2.537546177 | F136: -2.818551422
A137: 2012-04-01 | B137: 16863390 | C137: 16919079.21 | D137: 2012-04-01 | E137: -3.632066447 | F137: -3.176806415
A138: 2012-05-01 | B138: 16893799 | C138: 16996510.36 | D138: 2012-05-01 | E138: -3.448833388 | F138: -3.386049482
A139: 2012-06-01 | B139: 16966420 | C139: 17027842.57 | D139: 2012-06-01 | E139: -2.280501008 | F139: -3.17705957
A140: 2012-07-01 | B140: 16875350 | C140: 17032738.45 | D140: 2012-07-01 | E140: -4.070471241 | F140: -3.428027023
A141: 2012-08-01 | B141: 16682422 | C141: 16895976.9 | D141: 2012-08-01 | E141: -3.497767466 | F141: -3.454414845
A142: 2012-09-01 | B142: 16793649 | C142: 16809803.15 | D142: 2012-09-01 | E142: -2.675878169 | F142: -3.588978051
A143: 2012-10-01 | B143: 16557981 | C143: 16736726.63 | D143: 2012-10-01 | E143: -3.769174775 | F143: -3.592020122
A144: 2012-11-01 | B144: 16381817 | C144: 16531048.14 | D144: 2012-11-01 | E144: -4.779188365 | F144: -4.15966994
A145: 2012-12-01 | B145: 16332488 | C145: 16442681.23 | D145: 2012-12-01 | E145: -4.554192805 | F145: -4.569029929
A146: 2013-01-01 | B146: 16083780 | C146: 16179438.04 | D146: 2013-01-01 | E146: -4.375487709 | F146: -4.592621956
A147: 2013-02-01 | B147: 16094638 | C147: 16150746.6 | D147: 2013-02-01 | E147: -4.254400738 | F147: -4.417115712
A148: 2013-03-01 | B148: 16169814 | C148: 16181274.83 | D148: 2013-03-01 | E148: -4.239933781 | F148: -4.267145811
A149: 2013-04-01 | B149: 16198707 | C149: 16232352.3 | D149: 2013-04-01 | E149: -3.941574025 | F149: -4.058890567
A150: 2013-05-01 | B150: 16281979 | C150: 16367012.58 | D150: 2013-05-01 | E150: -3.621565522 | F150: -3.703688385
A151: 2013-06-01 | B151: 16346688 | C151: 16393865.5 | D151: 2013-06-01 | E151: -3.652697505 | F151: -3.723179066
A152: 2013-07-01 | B152: 16284726 | C152: 16426755.78 | D152: 2013-07-01 | E152: -3.499921483 | F152: -3.557752482
A153: 2013-08-01 | B153: 16271446 | C153: 16327687.18 | D153: 2013-08-01 | E153: -2.463527178 | F153: -3.363461748
A154: 2013-09-01 | B154: 16240307 | C154: 16305445.37 | D154: 2013-09-01 | E154: -3.294947989 | F154: -3.000378859
A155: 2013-10-01 | B155: 16190225 | C155: 16360372.51 | D155: 2013-10-01 | E155: -2.22101958 | F155: -2.248672206
A156: 2013-11-01 | B156: 16311593 | C156: 16293543.2 | D156: 2013-11-01 | E156: -0.4286703972 | F156: -1.436720394
A157: 2013-12-01 | B157: 16258042 | C157: 16357640.05 | D157: 2013-12-01 | E157: -0.4558154275 | F157: -0.517197766
A158: 2014-01-01 | B158: 16101625 | C158: 16173609.52 | D158: 2014-01-01 | E158: 0.1109502866 | F158: -0.03602424253
A159: 2014-02-01 | B159: 16168480 | C159: 16212303.8 | D159: 2014-02-01 | E159: 0.4587987627 | F159: 0.3811415133
A160: 2014-03-01 | B160: 16269721 | C160: 16296288.22 | D160: 2014-03-01 | E160: 0.6178611578 | F160: 0.710780771
A161: 2014-04-01 | B161: 16420853 | C161: 16430052.95 | D161: 2014-04-01 | E161: 1.371381061 | F161: 1.217942085
A162: 2014-05-01 | B162: 16643365 | C162: 16628373.22 | D162: 2014-05-01 | E162: 2.219545916 | F162: 1.596874437
A163: 2014-06-01 | B163: 16555787 | C163: 16684995.08 | D163: 2014-06-01 | E163: 1.279152083 | F163: 1.775844629
A164: 2014-07-01 | B164: 16605098 | C164: 16747102.64 | D164: 2014-07-01 | E164: 1.967315876 | F164: 1.950152984
A165: 2014-08-01 | B165: 16611116 | C165: 16649520.5 | D165: 2014-08-01 | E165: 2.087521908 | F165: 1.971089453
A166: 2014-09-01 | B166: 16565854 | C166: 16661702.95 | D166: 2014-09-01 | E166: 2.00456186 | F166: 2.184899412
A167: 2014-10-01 | B167: 16575092 | C167: 16690519.73 | D167: 2014-10-01 | E167: 2.377156587 | F167: 2.017968844
A168: 2014-11-01 | B168: 16731190 | C168: 16695751.7 | D168: 2014-11-01 | E168: 2.572385174 | F168: 2.468514645
A169: 2014-12-01 | B169: 16651884 | C169: 16775214.47 | D169: 2014-12-01 | E169: 2.422444228 | F169: 2.552779122
A170: 2015-01-01 | B170: 16589693 | C170: 16575312.25 | D170: 2015-01-01 | E170: 3.03117232 | F170: 2.483692521
A171: 2015-02-01 | B171: 16705373 | C171: 16672221.6 | D171: 2015-02-01 | E171: 3.320615172 | F171: 2.8368442
A172: 2015-03-01 | B172: 16826434 | C172: 16832800.54 | D172: 2015-03-01 | E172: 3.42177349 | F172: 3.292236323
A173: 2015-04-01 | B173: 16980816 | C173: 17008295.9 | D173: 2015-04-01 | E173: 3.410072546 | F173: 3.519422316
A174: 2015-05-01 | B174: 17248258 | C174: 17221310.4 | D174: 2015-05-01 | E174: 3.63443931 | F174: 3.565815923
A175: 2015-06-01 | B175: 17075016 | C175: 17256395 | D175: 2015-06-01 | E175: 3.136238706 | F175: 3.424633434
A176: 2015-07-01 | B176: 17127908 | C176: 17315188 | D176: 2015-07-01 | E176: 3.148490903 | F176: 3.392141131
A177: 2015-08-01 | B177: 16983303 | C177: 17180899 | D177: 2015-08-01 | E177: 2.240589976 | F177: 3.191554375
A178: 2015-09-01 | B178: 17072551 | C178: 17189815 | D178: 2015-09-01 | E178: 3.058683241 | F178: 3.169616285
A179: 2015-10-01 | B179: 17209036 | C179: 17221467 | D179: 2015-10-01 | E179: 3.82467862 | F179: 3.181130837
A180: 2015-11-01 | B180: 17208793 | C180: 17223086 | D180: 2015-11-01 | E180: 2.85456683 | F180: 3.158493906
A181: 2015-12-01 | B181: 17180590 | C181: 17308400 | D181: 2015-12-01 | E181: 3.175052144 | F181: 3.178412598
A182: 2016-01-01 | B182: 17112224 | C182: 17104357 | D182: 2016-01-01 | E182: 3.149732789 | F182: 3.191763401
A183: 2016-02-01 | B183: 17136666 | C183: 17167712 | D183: 2016-02-01 | E183: 2.581762167 | F183: 2.97195186
A184: 2016-03-01 | B184: 17263972 | C184: 17305798 | D184: 2016-03-01 | E184: 2.600301407 | F184: 2.80997484
A185: 2016-04-01 | B185: 17536670 | C185: 17463836 | D185: 2016-04-01 | E185: 3.273423374 | F185: 2.678340633
A186: 2016-05-01 | B186: 17598892 | C186: 17661840 | D186: 2016-05-01 | E186: 2.03286616 | F186: 2.558049241
A187: 2016-06-01 | B187: 17569070 | C187: 17760271 | D187: 2016-06-01 | E187: 2.893432135 | F187: 2.919937797
A188: 2016-07-01 | B188: 17805681 | C188: 17844992 | D188: 2016-07-01 | E188: 3.95712658 | F188: 3.059764641
A189: 2016-08-01 | B189: 17452445 | C189: 17699995 | D189: 2016-08-01 | E189: 2.76237196 | F189: 3.021355285
A190: 2016-09-01 | B190: 17603313 | C190: 17712021 | D190: 2016-09-01 | E190: 3.108861704 | F190: 3.03788028
A191: 2016-10-01 | B191: 17666175 | C191: 17813356 | D191: 2016-10-01 | E191: 2.656389353 | F191: 3.436925553
A192: 2016-11-01 | B192: 17734106 | C192: 17780524 | D192: 2016-11-01 | E192: 3.052584804 | F192: 3.236574444
A193: 2016-12-01 | B193: 17741897 | C193: 17849055 | D193: 2016-12-01 | E193: 3.267099675 | F193: 3.123656722
A194: 2017-01-01 | B194: 17603835 | C194: 17674175 | D194: 2017-01-01 | E194: 2.872864451 | F194: 3.331420176
A195: 2017-02-01 | B195: 17728908 | C195: 17748255 | D195: 2017-02-01 | E195: 3.455993132 | F195: 3.381597967
A196: 2017-03-01 | B196: 17852834 | C196: 17910007 | D196: 2017-03-01 | E196: 3.410929999 | F196: 3.49136746
A197: 2017-04-01 | B197: 18184000 | C197: 18122222 | D197: 2017-04-01 | E197: 3.691293729 | F197: 3.769996466
A198: 2017-05-01 | B198: 18261899 | C198: 18345414 | D198: 2017-05-01 | E198: 3.767322397 | F198: 3.8703442
A199: 2017-06-01 | B199: 18196843 | C199: 18433107 | D199: 2017-06-01 | E199: 3.573171488 | F199: 3.788433183
A200: 2017-07-01 | B200: 18276939 | C200: 18489329 | D200: 2017-07-01 | E200: 2.646672149 | F200: 3.610744124
... 60 more rows
